Workbook

Sheet PLANILHA RESUMO
A1: RESUMO PLANILHA ORÇAMENTÁRIA
A5: FIEMT - FEDERAÇÃO DAS INDUSTRIAS DO ESTADO DE MATO GROSSO
A6: OBRA: | B6: CONTRATAÇÃO DE EMPRESA DE ENGENHARIA PARA A REALIZAÇÃO OBRA DE REFORMA DO GABINETE DA SUPERINTENDENCIA, DIRETORIA, RECEPÇÃO, BANHEROS E SALAS DE REUNIÃO.
A7: UNIDADE OPERACIONAL: FIEMT
A8: ENDEREÇO: Av. Historiador Rubens de Mendonça, N.4571, Centro Politico Administrativo, Cuiabá - MT. CEP 78.049.940
A9: CONSTRUTORA:
A10: RESPONSÁVEL TÉCNICO:
A12: ITEM | B12: DESCRIÇÃO | E12: % | F12: Valor Total (R$)
A14: 1.0 | B14: =VLOOKUP(A14,'PLANILHA PADRÃO'!$1:$1048576,2,0) -> ADMINISTRAÇÃO | E14: =F14/$F$50 -> 0.1311693503 | F14: =VLOOKUP(A14,'PLANILHA PADRÃO'!$1:$1048576,6,0) -> 69292.35
A16: 1.1 | B16: =VLOOKUP(A16,'PLANILHA PADRÃO'!$1:$1048576,2,0) -> CANTEIRO DE OBRAS | E16: =F16/$F$50 -> 0.01956778164 | F16: =VLOOKUP(A16,'PLANILHA PADRÃO'!$1:$1048576,6,0) -> 10337
A18: 1.2 | B18: =VLOOKUP(A18,'PLANILHA PADRÃO'!$1:$1048576,2,0) -> MOBILIZAÇÃO E DESMOBILIZAÇÃO CARGA, MANOBRA E DESCARGA DE CONTEINERS | E18: =F18/$F$50 -> 0.002235009039 | F18: =VLOOKUP(A18,'PLANILHA PADRÃO'!$1:$1048576,6,0) -> 1180.68
A20: 1.3 | B20: =VLOOKUP(A20,'PLANILHA PADRÃO'!$1:$1048576,2,0) -> DEMOLIÇÕES E RETIRADAS | E20: =F20/$F$50 -> 0.01938425679 | F20: =VLOOKUP(A20,'PLANILHA PADRÃO'!$1:$1048576,6,0) -> 10240.05
A22: 1.4 | B22: =VLOOKUP(A22,'PLANILHA PADRÃO'!$1:$1048576,2,0) -> ESTRUTURA DE CONCRETO | E22: =F22/$F$50 -> 0.0006965615374 | F22: =VLOOKUP(A22,'PLANILHA PADRÃO'!$1:$1048576,6,0) -> 367.97
A24: 1.5 | B24: =VLOOKUP(A24,'PLANILHA PADRÃO'!$1:$1048576,2,0) -> ALVENARIAS E PAINÉIS GABINETE SESI/SALA DE ARQUIVO/RECEPÇÃO | E24: =F24/$F$50 -> 0.02679332273 | F24: =VLOOKUP(A24,'PLANILHA PADRÃO'!$1:$1048576,6,0) -> 14154.01
A26: 1.6 | B26: =VLOOKUP(A26,'PLANILHA PADRÃO'!$1:$1048576,2,0) -> ESQUADRIAS | E26: =F26/$F$50 -> 0.08757223061 | F26: =VLOOKUP(A26,'PLANILHA PADRÃO'!$1:$1048576,6,0) -> 46261.46
A28: 1.7 | B28: =VLOOKUP(A28,'PLANILHA PADRÃO'!$1:$1048576,2,0) -> PISOS | E28: =F28/$F$50 -> 0.09299760015 | F28: =VLOOKUP(A28,'PLANILHA PADRÃO'!$1:$1048576,6,0) -> 49127.5
A30: 1.8 | B30: =VLOOKUP(A30,'PLANILHA PADRÃO'!$1:$1048576,2,0) -> REVESTIMENTOS | E30: =F30/$F$50 -> 0.09410738129 | F30: =VLOOKUP(A30,'PLANILHA PADRÃO'!$1:$1048576,6,0) -> 49713.76
A32: 1.9 | B32: =VLOOKUP(A32,'PLANILHA PADRÃO'!$1:$1048576,2,0) -> FORRO | E32: =F32/$F$50 -> 0.05016151702 | F32: =VLOOKUP(A32,'PLANILHA PADRÃO'!$1:$1048576,6,0) -> 26498.64
A34: 1.10 | B34: =VLOOKUP(A34,'PLANILHA PADRÃO'!$1:$1048576,2,0) -> PINTURA | E34: =F34/$F$50 -> 0.03506763407 | F34: =VLOOKUP(A34,'PLANILHA PADRÃO'!$1:$1048576,6,0) -> 18525.05
A36: 1.11 | B36: =VLOOKUP(A36,'PLANILHA PADRÃO'!$1:$1048576,2,0) -> INSTALAÇÃO DE ÁGUA FRIA, ESGOTO E DRENAGEM | E36: =F36/$F$50 -> 0.004872731618 | F36: =VLOOKUP(A36,'PLANILHA PADRÃO'!$1:$1048576,6,0) -> 2574.1
A38: 1.12 | B38: =VLOOKUP(A38,'PLANILHA PADRÃO'!$1:$1048576,2,0) -> INSTALAÇÕES ELÉTRICA DE BAIXA TENSÃO | E38: =F38/$F$50 -> 0.2727690079 | F38: =VLOOKUP(A38,'PLANILHA PADRÃO'!$1:$1048576,6,0) -> 144094.68
A40: 1.13 | B40: =VLOOKUP(A40,'PLANILHA PADRÃO'!$1:$1048576,2,0) -> LOGICA E TELEFONICA | E40: =F40/$F$50 -> 0.07390802427 | F40: =VLOOKUP(A40,'PLANILHA PADRÃO'!$1:$1048576,6,0) -> 39043.12
A42: 1.14 | B42: =VLOOKUP(A42,'PLANILHA PADRÃO'!$1:$1048576,2,0) -> CLIMATIZAÇÃO - AR CONDICIONADO | E42: =F42/$F$50 -> 0.009091361342 | F42: =VLOOKUP(A42,'PLANILHA PADRÃO'!$1:$1048576,6,0) -> 4802.66
A44: 1.15 | B44: =VLOOKUP(A44,'PLANILHA PADRÃO'!$1:$1048576,2,0) -> INFRAESTRUTURA PARA INSTALAÇÃO DE AUDIO E VÍDEO | E44: =F44/$F$50 -> 0.03869985503 | F44: =VLOOKUP(A44,'PLANILHA PADRÃO'!$1:$1048576,6,0) -> 20443.83
A46: 1.16 | B46: =VLOOKUP(A46,'PLANILHA PADRÃO'!$1:$1048576,2,0) -> LOUÇAS E METÁIS | E46: =F46/$F$50 -> 0.04034241668 | F46: =VLOOKUP(A46,'PLANILHA PADRÃO'!$1:$1048576,6,0) -> 21311.54
A48: 1.17 | B48: =VLOOKUP(A48,'PLANILHA PADRÃO'!$1:$1048576,2,0) -> LIMPEZA FINAL PARA ENTREGA | E48: =F48/$F$50 -> 0.0005639579673 | F48: =VLOOKUP(A48,'PLANILHA PADRÃO'!$1:$1048576,6,0) -> 297.92
B50: VALOR TOTAL | E50: =SUBTOTAL(9,E14:E49) -> 1 | F50: =SUBTOTAL(9,F14:F49) -> 528266.32

Sheet CRONOGRAMA FISICO-FINANCEIRO
C1: CRONOGRAMA FÍSICO FINANCEIRO | K1: UNAEN-FF-003
K3: Revisão: 00 | L3: Data: 11/05/2017
A4: FIEMT - FEDERAÇÃO DAS INDUSTRIAS DO ESTADO DE MATO GROSSO
A5: OBRA: | B5: CONTRATAÇÃO DE EMPRESA DE ENGENHARIA PARA A REALIZAÇÃO OBRA DE REFORMA DO GABINETE DA SUPERINTENDENCIA, DIRETORIA, RECEPÇÃO, BANHEROS E SALAS DE REUNIÃO. | D5: ENDEREÇO: Av. Historiador Rubens de Mendonça, N.4571, Centro Politico Administrativo, Cuiabá - MT. CEP 78.049.940 CIDADE: CUIABÁ-MT
A6: CONSTRUTORA: | D6: VALOR: | E6: ='PLANILHA RESUMO'!F50 -> 528266.32 | H6: PRAZO: 03 MESES
A7: RESPONSÁVEL TÉCNICO:
A8: GERAL
A11: ITEM | B11: DESCRIÇÃO | C11: ETAPA TOTAL | E11: 1 MÊS | G11: 2 MESES | I11: 3 MESES | K11: TOTAL
C12: (R$) | D12: (%) | E12: (R$) | F12: (%) | G12: (R$) | H12: (%) | I12: (R$) | J12: (%) | K12: (R$) | L12: (%)
A13: ='PLANILHA PADRÃO'!$A$14 -> 1.0 | B13: =VLOOKUP(A13,'PLANILHA PADRÃO'!$1:$1048576,2,0) -> ADMINISTRAÇÃO | C13: ='PLANILHA PADRÃO'!$F$14 -> 69292.35 | D13: =C13/$C$31*100 -> 13.11693503 | E13: =F13*$C13/100 -> 13179.40497 | F13: 19.02 | G13: =H13*$C13/100 -> 34632.31653 | H13: 49.98 | I13: =J13*$C13/100 -> 21480.6285 | J13: =100-F13-H13 -> 31 | K13: =L13*$C13/100 -> 69292.35 | L13: =F13+H13+J13 -> 100
A14: ='PLANILHA PADRÃO'!$A$21 -> 1.1 | B14: =VLOOKUP(A14,'PLANILHA PADRÃO'!$1:$1048576,2,0) -> CANTEIRO DE OBRAS | C14: ='PLANILHA PADRÃO'!$F$21 -> 10337 | D14: 1.956778164 | E14: 3445.666667 | F14: =100/3 -> 33.33333333 | G14: 3445.666667 | H14: =100/3 -> 33.33333333 | I14: 3445.666667 | J14: =100/3 -> 33.33333333 | K14: 10337 | L14: =F14+H14+J14 -> 100
A15: ='PLANILHA PADRÃO'!$A$29 -> 1.2 | B15: =VLOOKUP(A15,'PLANILHA PADRÃO'!$1:$1048576,2,0) -> MOBILIZAÇÃO E DESMOBILIZAÇÃO CARGA, MANOBRA E DESCARGA DE CONTEINERS | C15: ='PLANILHA PADRÃO'!$F$29 -> 1180.68 | D15: 0.2235009039 | E15: 590.34 | F15: 50 | G15: 590.34 | H15: 50 | I15: 0 | K15: 1180.68 | L15: 100
A16: ='PLANILHA PADRÃO'!$A$33 -> 1.3 | B16: =VLOOKUP(A16,'PLANILHA PADRÃO'!$1:$1048576,2,0) -> DEMOLIÇÕES E RETIRADAS | C16: ='PLANILHA PADRÃO'!$F$33 -> 10240.05 | D16: 1.938425679 | E16: 10240.05 | F16: 100 | G16: 0 | I16: 0 | K16: 10240.05 | L16: 100
A17: ='PLANILHA PADRÃO'!$A$77 -> 1.4 | B17: =VLOOKUP(A17,'PLANILHA PADRÃO'!$1:$1048576,2,0) -> ESTRUTURA DE CONCRETO | C17: ='PLANILHA PADRÃO'!$F$77 -> 367.97 | D17: 0.06965615374 | E17: 0 | G17: 367.97 | H17: 100 | I17: 0 | K17: 367.97 | L17: 100
A18: ='PLANILHA PADRÃO'!$A$85 -> 1.5 | B18: =VLOOKUP(A18,'PLANILHA PADRÃO'!$1:$1048576,2,0) -> ALVENARIAS E PAINÉIS GABINETE SESI/SALA DE ARQUIVO/RECEPÇÃO | C18: ='PLANILHA PADRÃO'!$F$85 -> 14154.01 | D18: 2.679332273 | E18: 4246.203 | F18: 30 | G18: 9907.807 | H18: 70 | I18: 0 | K18: 14154.01 | L18: 100
A19: ='PLANILHA PADRÃO'!$A$92 -> 1.6 | B19: =VLOOKUP(A19,'PLANILHA PADRÃO'!$1:$1048576,2,0) -> ESQUADRIAS | C19: ='PLANILHA PADRÃO'!$F$92 -> 46261.46 | D19: 8.757223061 | E19: 0 | G19: 23130.73 | H19: 50 | I19: 23130.73 | J19: 50 | K19: 46261.46 | L19: 100
A20: ='PLANILHA PADRÃO'!$A$107 -> 1.7 | B20: =VLOOKUP(A20,'PLANILHA PADRÃO'!$1:$1048576,2,0) -> PISOS | C20: ='PLANILHA PADRÃO'!$F$107 -> 49127.5 | D20: 9.299760015 | E20: 0 | G20: 9825.5 | H20: 20 | I20: 39302 | J20: 80 | K20: 49127.5 | L20: 100
A21: ='PLANILHA PADRÃO'!$A$115 -> 1.8 | B21: =VLOOKUP(A21,'PLANILHA PADRÃO'!$1:$1048576,2,0) -> REVESTIMENTOS | C21: ='PLANILHA PADRÃO'!$F$115 -> 49713.76 | D21: 9.410738129 | E21: 14914.128 | F21: 30 | G21: 34799.632 | H21: 70 | I21: 0 | K21: 49713.76 | L21: 100
A22: ='PLANILHA PADRÃO'!$A$130 -> 1.9 | B22: =VLOOKUP(A22,'PLANILHA PADRÃO'!$1:$1048576,2,0) -> FORRO | C22: ='PLANILHA PADRÃO'!$F$130 -> 26498.64 | D22: 5.016151702 | E22: 0 | G22: 26498.64 | H22: 100 | I22: 0 | K22: 26498.64 | L22: 100
A23: ='PLANILHA PADRÃO'!$A$134 -> 1.10 | B23: =VLOOKUP(A23,'PLANILHA PADRÃO'!$1:$1048576,2,0) -> PINTURA | C23: ='PLANILHA PADRÃO'!$F$134 -> 18525.05 | D23: 3.506763407 | E23: 0 | G23: 5557.515 | H23: 30 | I23: 12967.535 | J23: 70 | K23: 18525.05 | L23: 100
A24: ='PLANILHA PADRÃO'!$A$146 -> 1.11 | B24: =VLOOKUP(A24,'PLANILHA PADRÃO'!$1:$1048576,2,0) -> INSTALAÇÃO DE ÁGUA FRIA, ESGOTO E DRENAGEM | C24: ='PLANILHA PADRÃO'!$F$146 -> 2574.1 | D24: =C24/$C$31*100 -> 0.4872731618 | E24: =F24*$C24/100 -> 1801.87 | F24: 70 | G24: =H24*$C24/100 -> 772.23 | H24: 30 | I24: 0 | K24: =L24*$C24/100 -> 2574.1 | L24: 100
A25: ='PLANILHA PADRÃO'!$A$172 -> 1.12 | B25: =VLOOKUP(A25,'PLANILHA PADRÃO'!$1:$1048576,2,0) -> INSTALAÇÕES ELÉTRICA DE BAIXA TENSÃO | C25: ='PLANILHA PADRÃO'!$F$172 -> 144094.68 | D25: 27.27690079 | E25: 36023.67 | F25: 25 | G25: 72047.34 | H25: 50 | I25: 36023.67 | J25: 25 | K25: 144094.68 | L25: 100
A26: ='PLANILHA PADRÃO'!$A$295 -> 1.13 | B26: =VLOOKUP(A26,'PLANILHA PADRÃO'!$1:$1048576,2,0) -> LOGICA E TELEFONICA | C26: ='PLANILHA PADRÃO'!$F$295 -> 39043.12 | D26: 7.390802427 | E26: 9760.78 | F26: 25 | G26: 25378.028 | H26: 65 | I26: 3904.312 | J26: 10 | K26: 39043.12 | L26: 100
A27: ='PLANILHA PADRÃO'!$A$319 -> 1.14 | B27: =VLOOKUP(A27,'PLANILHA PADRÃO'!$1:$1048576,2,0) -> CLIMATIZAÇÃO - AR CONDICIONADO | C27: ='PLANILHA PADRÃO'!$F$319 -> 4802.66 | D27: 0.9091361342 | E27: 0 | G27: 4802.66 | H27: 100 | I27: 0 | K27: 4802.66 | L27: 100
A28: ='PLANILHA PADRÃO'!$A$332 -> 1.15 | B28: =VLOOKUP(A28,'PLANILHA PADRÃO'!$1:$1048576,2,0) -> INFRAESTRUTURA PARA INSTALAÇÃO DE AUDIO E VÍDEO | C28: ='PLANILHA PADRÃO'!$F$332 -> 20443.83 | D28: 3.869985503 | E28: 6133.149 | F28: 30 | G28: 10221.915 | H28: 50 | I28: 4088.766 | J28: 20 | K28: 20443.83 | L28: 100
A29: ='PLANILHA PADRÃO'!$A$345 -> 1.16 | B29: =VLOOKUP(A29,'PLANILHA PADRÃO'!$1:$1048576,2,0) -> LOUÇAS E METÁIS | C29: ='PLANILHA PADRÃO'!$F$345 -> 21311.54 | D29: =C29/$C$31*100 -> 4.034241668 | E29: =F29*$C29/100 -> 0 | G29: =H29*$C29/100 -> 2131.154 | H29: 10 | I29: 19180.386 | J29: 90 | K29: =L29*$C29/100 -> 21311.54 | L29: 100
A30: ='PLANILHA PADRÃO'!$A$366 -> 1.17 | B30: =VLOOKUP(A30,'PLANILHA PADRÃO'!$1:$1048576,2,0) -> LIMPEZA FINAL PARA ENTREGA | C30: ='PLANILHA PADRÃO'!$F$366 -> 297.92 | D30: 0.05639579673 | G30: 0 | I30: 297.92 | J30: 100 | K30: 297.92 | L30: 100
B31: TOTAL | C31: =SUM(C13:C30) -> 528266.32 | D31: =SUM(D13:D30) -> 100 | E31: =SUM(E13:E30) -> 100335.2616 | F31: =E31/$C31*100 -> 18.99331035 | G31: =SUM(G13:G30) -> 264109.4442 | H31: =G31/$C31*100 -> 49.99551063 | I31: =SUM(I13:I30) -> 163821.6142 | J31: =I31/$C31*100 -> 31.01117901 | K31: =SUM(K13:K30) -> 528266.32 | L31: =K31/$C31*100 -> 100
B32: TOTAL ACUMULADO | E32: =E31 -> 100335.2616 | F32: =E32/$C31*100 -> 18.99331035 | G32: =G31+E32 -> 364444.7058 | H32: =G32/$C31*100 -> 68.98882099 | I32: =I31+G32 -> 528266.32 | J32: =I32/$C31*100 -> 100

Sheet PLANILHA PADRÃO
A1: PLANILHA ORÇAMENTARIA | D1: SPN-FF-003 | L1: C:\Users\alexandre.seba\OneDrive - SFIEMT\UNAEN\1.ENGENHARIA SESI SENAI\01.UO\03.CONDOMÍNIO.FIEMT\2022.12.05_REFORMA_GDR_SUPERINT\ANEXO I.B - PLANILHA ORÇAMENTÁRIA\BASE-DADOS-SINAPI-10-2022.xlsx
D3: Folha: 1 de 1 | E3: Revisão: 02 | F3: Data: 07/10/19
A5: FIEMT - FEDERAÇÃO DAS INDUSTRIAS DO ESTADO DE MATO GROSSO
A6: OBRA: | B6: CONTRATAÇÃO DE EMPRESA DE ENGENHARIA PARA A REALIZAÇÃO OBRA DE REFORMA DO GABINETE DA SUPERINTENDENCIA, DIRETORIA, RECEPÇÃO, BANHEROS E SALAS DE REUNIÃO.
A7: UNIDADE OPERACIONAL: FIEMT
A8: ENDEREÇO: Av. Historiador Rubens de Mendonça, N.4571, Centro Politico Administrativo, Cuiabá - MT. CEP 78.049.940 CIDADE: CUIABÁ - MT
A9: CONSTRUTORA: | H9: BDI DIFERENCIADO: | I9: =BDI_EQUI -> 0.1461
A10: RESPONSÁVEL TÉCNICO: | D10: REF.: | E10: =LEFT(RIGHT(CAMINHO_DO_BD,19),14) -> SINAPI-10-2022 | H10: BDI: | I10: =BDI -> 0.2235 | J10: SINAPI REF. | K10: =LEFT(RIGHT(CAMINHO_DO_BD,12),7) -> 10-2022
A12: ITEM | B12: DESCRIÇÃO | C12: UNID. | D12: QUANT. | E12: Valor UNIT. (R$) | F12: Valor Total (R$) | H12: CÓDIGO | I12: ORIGEM/OBSERVAÇÃO | J12: Valor Unit. (R$) SEM BDI | K12: Valor Unit. (R$) C/ BDI | M12: TIPO DO ITEM | N12: TIPO DO BDI
A14: 1.0 | B14: ADMINISTRAÇÃO | F14: =SUBTOTAL(9,F15:F20) -> 69292.35
A15: =$A$14&"."&(ROW(A15)-ROW($A$14)) -> 1.0.1 | B15: ENGENHEIRO CIVIL DE OBRA PLENO COM ENCARGOS COMPLEMENTARES 02 HORAS X 5 DIAS X3 meses | C15: H | D15: 120 | E15: =K15 -> 143.41 | F15: =ROUND(D15*E15,2) -> 17209.2 | H15: 90778 | I15: =IF(M15="COMPOSIÇÃO",LEFT(RIGHT(CAMINHO_DO_BD,19),14),IF(M15="INSUMO","INSUMO " & LEFT(RIGHT(CAMINHO_DO_BD,19),14),IF(M15="COMPOSIÇÃO PRÓPRIA","COMPOSIÇÃO PRÓPRIA COM BASE NA " & LEFT(RIGHT(CAMINHO_DO_BD,19),14),"PREÇO MÉDIO DE ORÇAMENTOS"))) -> SINAPI-10-2022 | J15: 117.21 | K15: =ROUND(J15*(1+BDI),2) -> 143.41 | M15: COMPOSIÇÃO | N15: BDI DE OBRA
A16: =$A$14&"."&(ROW(A16)-ROW($A$14)) -> 1.0.2 | B16: ENGENHEIRO ELETRICISTA COM ENCARGOS COMPLEMENTARES 02 HORAS X 5 DIAS X3 meses | C16: H | D16: 120 | E16: =K16 -> 122.29 | F16: =ROUND(D16*E16,2) -> 14674.8 | H16: 91677 | I16: =IF(M16="COMPOSIÇÃO",LEFT(RIGHT(CAMINHO_DO_BD,19),14),IF(M16="INSUMO","INSUMO " & LEFT(RIGHT(CAMINHO_DO_BD,19),14),IF(M16="COMPOSIÇÃO PRÓPRIA","COMPOSIÇÃO PRÓPRIA COM BASE NA " & LEFT(RIGHT(CAMINHO_DO_BD,19),14),"PREÇO MÉDIO DE ORÇAMENTOS"))) -> SINAPI-10-2022 | J16: 99.95 | K16: =ROUND(J16*(1+BDI),2) -> 122.29 | M16: COMPOSIÇÃO | N16: BDI DE OBRA
A17: =$A$14&"."&(ROW(A17)-ROW($A$14)) -> 1.0.3 | B17: ENCARREGADO GERAL DE OBRAS COM ENCARGOS COMPLEMENTARES | C17: MES | D17: 3 | E17: =K17 -> 6144.75 | F17: =ROUND(D17*E17,2) -> 18434.25 | H17: 93572 | I17: =IF(M17="COMPOSIÇÃO",LEFT(RIGHT(CAMINHO_DO_BD,19),14),IF(M17="INSUMO","INSUMO " & LEFT(RIGHT(CAMINHO_DO_BD,19),14),IF(M17="COMPOSIÇÃO PRÓPRIA","COMPOSIÇÃO PRÓPRIA COM BASE NA " & LEFT(RIGHT(CAMINHO_DO_BD,19),14),"PREÇO MÉDIO DE ORÇAMENTOS"))) -> SINAPI-10-2022 | J17: 5022.27 | K17: =ROUND(J17*(1+BDI),2) -> 6144.75 | M17: COMPOSIÇÃO | N17: BDI DE OBRA
A18: =$A$14&"."&(ROW(A18)-ROW($A$14)) -> 1.0.4 | B18: TÉCNICO EM SEGURANÇA DO TRABALHO COM ENCARGOS COMPLEMENTARES | C18: MES | D18: 3 | E18: =K18 -> 6133.88 | F18: =ROUND(D18*E18,2) -> 18401.64 | H18: 100321 | I18: =IF(M18="COMPOSIÇÃO",LEFT(RIGHT(CAMINHO_DO_BD,19),14),IF(M18="INSUMO","INSUMO " & LEFT(RIGHT(CAMINHO_DO_BD,19),14),IF(M18="COMPOSIÇÃO PRÓPRIA","COMPOSIÇÃO PRÓPRIA COM BASE NA " & LEFT(RIGHT(CAMINHO_DO_BD,19),14),"PREÇO MÉDIO DE ORÇAMENTOS"))) -> SINAPI-10-2022 | J18: 5013.39 | K18: =ROUND(J18*(1+BDI),2) -> 6133.88 | M18: COMPOSIÇÃO | N18: BDI DE OBRA
A19: =$A$14&"."&(ROW(A19)-ROW($A$14)) -> 1.0.5 | B19: ANOTAÇÃO DE RESPONSABILIDADE TÉCNICA DE EXECUÇÃO | C19: UN | D19: 2 | E19: =K19 -> 286.23 | F19: =ROUND(D19*E19,2) -> 572.46 | H19: C_CIV0326 | I19: =IF(M19="COMPOSIÇÃO",LEFT(RIGHT(CAMINHO_DO_BD,19),14),IF(M19="INSUMO","INSUMO " & LEFT(RIGHT(CAMINHO_DO_BD,19),14),IF(M19="COMPOSIÇÃO PRÓPRIA","COMPOSIÇÃO PRÓPRIA COM BASE NA " & LEFT(RIGHT(CAMINHO_DO_BD,19),14),"PREÇO MÉDIO DE ORÇAMENTOS"))) -> COMPOSIÇÃO PRÓPRIA COM BASE NA SINAPI-10-2022 | J19: 233.94 | K19: =ROUND(J19*(1+BDI),2) -> 286.23 | M19: COMPOSIÇÃO PRÓPRIA | N19: BDI DE OBRA
A21: 1.1 | B21: CANTEIRO DE OBRAS | F21: =SUBTOTAL(9,F22:F28) -> 10337
A22: =$A$21&"."&(ROW(A22)-ROW($A$21)) -> 1.1.1 | B22: LOCACAO DE CONTAINER 2,30 X 6,00 M, ALT. 2,50 M, COM 1 SANITARIO, PARA ESCRITORIO, COMPLETO, SEM DIVISORIAS INTERNAS (NAO INCLUI MOBILIZACAO/DESMOBILIZACAO) | C22: MES | D22: 3 | E22: =K22 -> 1052.21 | F22: =ROUND(D22*E22,2) -> 3156.63 | H22: 10775 | I22: =IF(M22="COMPOSIÇÃO",LEFT(RIGHT(CAMINHO_DO_BD,19),14),IF(M22="INSUMO","INSUMO " & LEFT(RIGHT(CAMINHO_DO_BD,19),14),IF(M22="COMPOSIÇÃO PRÓPRIA","COMPOSIÇÃO PRÓPRIA COM BASE NA " & LEFT(RIGHT(CAMINHO_DO_BD,19),14),"PREÇO MÉDIO DE ORÇAMENTOS"))) -> INSUMO SINAPI-10-2022 | J22: 860 | K22: =ROUND(J22*(1+BDI),2) -> 1052.21 | M22: INSUMO | N22: BDI DE OBRA
A23: =$A$21&"."&(ROW(A23)-ROW($A$21)) -> 1.1.2 | B23: LOCACAO DE CONTAINER 2,30 X 6,00 M, ALT. 2,50 M, PARA ALMOXARIFADO, SEM DIVISORIAS INTERNAS E SEM SANITARIO | C23: MES | D23: 3 | E23: 822.03 | F23: 2466.09 | H23: 10776 | I23: INSUMO SINAPI-10-2022 | J23: 671.87 | K23: 822.03 | M23: INSUMO | N23: BDI DE OBRA
A24: 1.1.3 | B24: LOCAÇÃO MENSAL INCLUSIVE FRETE BEBEDOURO ELÉTRICO TEMPERATURA NATURAL OU GELADA. | C24: MES | D24: 3 | E24: 390.19 | F24: 1170.57 | H24: C_CIV0149 | I24: COMPOSIÇÃO PRÓPRIA COM BASE NA SINAPI-10-2022 | J24: 318.91 | K24: 390.19 | M24: COMPOSIÇÃO PRÓPRIA | N24: BDI DE OBRA
A25: 1.1.4 | B25: LOCACAO DE ANDAIME METALICO TUBULAR DE ENCAIXE, TIPO DE TORRE, CADA PAINEL COM LARGURA DE 1 ATE 1,5 M E ALTURA DE *1,00* M, INCLUINDO DIAGONAL, BARRAS DE LIGACAO, SAPATAS OU RODIZIOS E DEMAIS ITENS NECESSARIOS A MONTAGEM | C25: MXMES | D25: 24 | E25: =K25 -> 29.36 | F25: 704.64 | H25: 10527 | I25: INSUMO SINAPI-10-2022 | J25: 24 | K25: 29.36 | M25: INSUMO | N25: BDI DE OBRA
A26: =$A$21&"."&(ROW(A26)-ROW($A$21)) -> 1.1.5 | B26: TAPUME COM TELHA METÁLICA. AF_05/2018 | C26: M2 | D26: 18.96 | E26: =K26 -> 130.4 | F26: 2472.38 | G26: C_CIV0327 | H26: 98459 | I26: SINAPI-10-2022 | J26: 106.58 | K26: 130.4 | M26: COMPOSIÇÃO | N26: BDI DE OBRA
A27: =$A$21&"."&(ROW(A27)-ROW($A$21)) -> 1.1.6 | B27: PLANO MENSAL DE INTERNET | C27: MÊS | D27: 3 | E27: =K27 -> 122.23 | F27: 366.69 | G27: C_CIV0327 | H27: C_CIV0327 | I27: COMPOSIÇÃO PRÓPRIA COM BASE NA SINAPI-10-2022 | J27: 99.9 | K27: 122.23 | M27: COMPOSIÇÃO PRÓPRIA | N27: BDI DE OBRA
A29: 1.2 | B29: MOBILIZAÇÃO E DESMOBILIZAÇÃO CARGA, MANOBRA E DESCARGA DE CONTEINERS | F29: =SUBTOTAL(9,F30:F32) -> 1180.68
A30: =$A$29&"."&(ROW(A30)-ROW($A$29)) -> 1.2.1 | B30: TRANSPORTE COM CAMINHÃO CARROCERIA COM GUINDAUTO (MUNCK), MOMENTO MÁXIMO DE CARGA 11,7 TM, EM VIA URBANA PAVIMENTADA, DMT ATÉ 30KM (UNIDADE: TXKM). AF_07/2020 2 TONELADAS X 3 CONTEINERS X 30KM (20KM IDA E 20KM VOLTA) | C30: TXKM | D30: 240 | E30: =K30 -> 3.33 | F30: =ROUND(D30*E30,2) -> 799.2 | H30: 100952 | I30: =IF(M30="COMPOSIÇÃO",LEFT(RIGHT(CAMINHO_DO_BD,19),14),IF(M30="INSUMO","INSUMO " & LEFT(RIGHT(CAMINHO_DO_BD,19),14),IF(M30="COMPOSIÇÃO PRÓPRIA","COMPOSIÇÃO PRÓPRIA COM BASE NA " & LEFT(RIGHT(CAMINHO_DO_BD,19),14),"PREÇO MÉDIO DE ORÇAMENTOS"))) -> SINAPI-10-2022 | J30: 2.72 | K30: =ROUND(J30*(1+BDI),2) -> 3.33 | M30: COMPOSIÇÃO | N30: BDI DE OBRA
A31: =$A$29&"."&(ROW(A31)-ROW($A$29)) -> 1.2.2 | B31: CARGA, MANOBRA E DESCARGA DE CONTEINER EM CAMINHÃO CARROCERIA COM GUINDAUTO (MUNCK) 11,7 TM | C31: T | D31: 12 | E31: 31.79 | F31: 381.48 | H31: 101010 | I31: =IF(M31="COMPOSIÇÃO",LEFT(RIGHT(CAMINHO_DO_BD,19),14),IF(M31="INSUMO","INSUMO " & LEFT(RIGHT(CAMINHO_DO_BD,19),14),IF(M31="COMPOSIÇÃO PRÓPRIA","COMPOSIÇÃO PRÓPRIA COM BASE NA " & LEFT(RIGHT(CAMINHO_DO_BD,19),14),"PREÇO MÉDIO DE ORÇAMENTOS"))) -> SINAPI-10-2022 | J31: 25.98 | K31: =ROUND(J31*(1+BDI),2) -> 31.79 | M31: COMPOSIÇÃO | N31: BDI DE OBRA
A33: 1.3 | B33: DEMOLIÇÕES E RETIRADAS | F33: =SUBTOTAL(9,F34:F76) -> 10240.05
A35: 1.3.1 | B35: GABINETE SESI | F35: =SUBTOTAL(9,F36:F51) -> 4348.64
A36: =$A$35&"."&(ROW(A36)-ROW($A$35)) -> 1.3.1.1 | B36: DEMOLIÇÃO DE ALVENARIA DE BLOCO FURADO, DE FORMA MANUAL, SEM REAPROVEITAMENTO. AF_12/2017 - ABERTURA DE VÃO DE PORTAS | C36: M3 | D36: 3.3105 | E36: =K36 -> 62.08 | F36: =ROUND(D36*E36,2) -> 205.52 | H36: 97622 | I36: =IF(M36="COMPOSIÇÃO",LEFT(RIGHT(CAMINHO_DO_BD,19),14),IF(M36="INSUMO","INSUMO " & LEFT(RIGHT(CAMINHO_DO_BD,19),14),IF(M36="COMPOSIÇÃO PRÓPRIA","COMPOSIÇÃO PRÓPRIA COM BASE NA " & LEFT(RIGHT(CAMINHO_DO_BD,19),14),"PREÇO MÉDIO DE ORÇAMENTOS"))) -> SINAPI-10-2022 | J36: 50.74 | K36: =ROUND(J36*(1+BDI),2) -> 62.08 | M36: COMPOSIÇÃO | N36: BDI DE OBRA
A37: =$A$35&"."&(ROW(A37)-ROW($A$35)) -> 1.3.1.2 | B37: REMOÇÃO DE CHAPAS E PERFIS DE DRYWALL, DE FORMA MANUAL, SEM REAPROVEITAMENTO. AF_12/2017 - GABINETE DA SUPERINTENDENCIA | C37: M2 | D37: 13.92 | E37: 8.09 | F37: 112.61 | H37: 97638 | I37: SINAPI-10-2022 | J37: 6.61 | K37: 8.09 | M37: COMPOSIÇÃO | N37: BDI DE OBRA
A38: 1.3.1.3 | B38: REMOÇÃO DE BANCADA DE GRANITO JUNTAMENTE COM AS CUBAS EMBUTIDAS, DE FORMA MANUAL, RETIRADA E ARMAZENAMENTO EM LOCAL DEFINIDO PELA FISCALIZAÇÃO BANHEIRO GABINETE SUPERINTENDENCIA | C38: M2 | D38: 0.5 | E38: =K38 -> 53.67 | F38: =ROUND(D38*E38,2) -> 26.84 | H38: C_CIV0298 | I38: COMPOSIÇÃO PRÓPRIA COM BASE NA SINAPI-10-2022 | J38: 43.87 | K38: =ROUND(J38*(1+BDI),2) -> 53.67 | M38: COMPOSIÇÃO PRÓPRIA | N38: BDI DE OBRA
A39: 1.3.1.4 | B39: DEMOLIÇÃO DE REVESTIMENTO DE PISO E PAREDE, DE FORMA MANUAL, SEM REAPROVEITAMENTO. AF_12/2017 - BANHEIRO E GABINETE SUPERINTENDENCIA | C39: M2 | D39: 51.35 | E39: =K39 -> 24.76 | F39: =ROUND(D39*E39,2) -> 1271.43 | H39: 97633 | I39: SINAPI-10-2022 | J39: 20.24 | K39: =ROUND(J39*(1+BDI),2) -> 24.76 | M39: COMPOSIÇÃO | N39: BDI DE OBRA
A40: 1.3.1.5 | B40: REMOÇÃO DE FORRO DE GESSO, DE FORMA MANUAL, SEM REAPROVEITAMENTO. AF_12/2017 | C40: M2 | D40: 39.56 | E40: 5.38 | F40: 212.83 | H40: 97641 | I40: SINAPI-10-2022 | J40: 4.4 | K40: =ROUND(J40*(1+BDI),2) -> 5.38 | M40: COMPOSIÇÃO | N40: BDI DE OBRA
A41: 1.3.1.6 | B41: REMOÇÃO DE TRAMA METÁLICA OU DE MADEIRA PARA FORRO, DE FORMA MANUAL, SEM REAPROVEITAMENTO. AF_12/2017 - REMOÇÃO DE ESTRUTURA DE FORRO. | C41: M2 | D41: 39.56 | E41: 3.14 | F41: 124.22 | H41: 97642 | I41: SINAPI-10-2022 | J41: 2.57 | K41: 3.14 | M41: COMPOSIÇÃO | N41: BDI DE OBRA
A42: 1.3.1.7 | B42: REMOÇÃO DE CORTINA E CORTINEIROS DE JANELAS COM DESTINAÇÃO A SER DEFINIDO PELA FISCALIZAÇÃO | C42: M2 | D42: 23.34 | E42: 8.09 | F42: 188.82 | H42: 97638 | I42: SINAPI-10-2022 | J42: 6.61 | K42: 8.09 | M42: COMPOSIÇÃO | N42: BDI DE OBRA
A43: 1.3.1.8 | B43: REMOÇÃO DE LOUÇAS, DE FORMA MANUAL, SEM REAPROVEITAMENTO. AF_12/2017 BANHEIRO SESI COM DESTINAÇÃO A SER DEFINIDO PELA FISCALIZAÇÃO | C43: UN | D43: 2 | E43: =K43 -> 13.48 | F43: =ROUND(D43*E43,2) -> 26.96 | H43: 97663 | I43: SINAPI-10-2022 | J43: 11.02 | K43: =ROUND(J43*(1+BDI),2) -> 13.48 | M43: COMPOSIÇÃO | N43: BDI DE OBRA
A44: 1.3.1.9 | B44: REMOÇÃO DE METAIS SANITÁRIOS, DE FORMA MANUAL, SEM REAPROVEITAMENTO. AF_12/2017 BANHEIRO SESI COM DESTINAÇÃO A SER DEFINIDO PELA FISCALIZAÇÃO | C44: UN | D44: 10 | E44: =K44 -> 9.82 | F44: =ROUND(D44*E44,2) -> 98.2 | H44: 97666 | I44: SINAPI-10-2022 | J44: 8.03 | K44: =ROUND(J44*(1+BDI),2) -> 9.82 | M44: COMPOSIÇÃO | N44: BDI DE OBRA
A45: 1.3.1.10 | B45: REMOÇÃO DE BANCADA DE GRANITO JUNTAMENTE COM AS CUBAS EMBUTIDAS, DE FORMA MANUAL, RETIRADA E ARMAZENAMENTO EM LOCAL DEFINIDO PELA FISCALIZAÇÃO BAHEIRO SESI COM DESTINAÇÃO A SER DEFINIDO PELA FISCALIZAÇÃO | C45: M2 | D45: 1.19 | E45: =K45 -> 53.67 | F45: =ROUND(D45*E45,2) -> 63.87 | H45: C_CIV0298 | I45: COMPOSIÇÃO PRÓPRIA COM BASE NA SINAPI-10-2022 | J45: 43.87 | K45: =ROUND(J45*(1+BDI),2) -> 53.67 | M45: COMPOSIÇÃO PRÓPRIA | N45: BDI DE OBRA
A46: 1.3.1.11 | B46: REMOÇÃO DE PORTAS, DE FORMA MANUAL, SEM REAPROVEITAMENTO, COM DESTINAÇÃO A SER DEFINIDO PELA FISCALIZAÇÃO | C46: M2 | D46: 3.57 | E46: =K46 -> 10.09 | F46: =ROUND(D46*E46,2) -> 36.02 | H46: 97644 | I46: SINAPI-10-2022 | J46: 8.25 | K46: =ROUND(J46*(1+BDI),2) -> 10.09 | M46: COMPOSIÇÃO | N46: BDI DE OBRA
A47: 1.3.1.12 | B47: DEMOLIÇÃO DE RODAPÉ, DE FORMA MANUAL, SEM REAPROVEITAMENTO. AF_12/2017 GABINETE SUPERINTENDENCIA/SALA DE ARQUIVO/SALA REUNIÃO DA SUPERINTENDENCIA | C47: M | D47: 51.61 | E47: 2.83 | F47: 146.06 | H47: 97632 | I47: SINAPI-10-2022 | J47: 2.31 | K47: =ROUND(J47*(1+BDI),2) -> 2.83 | M47: COMPOSIÇÃO | N47: BDI DE OBRA
A48: 1.3.1.13 | B48: REMOÇÃO DE JANELAS, DE FORMA MANUAL, SEM REAPROVEITAMENTO. AF_12/2017 GABINETE SESI/SALA REUNIÃO SESI/SALA DO ATUAL MARKETING COM DESTINAÇÃO A SER DEFINIDO PELA FISCALIZAÇÃO | C48: M2 | D48: 34.8 | E48: 37.45 | F48: 1303.26 | H48: 97645 | I48: SINAPI-10-2022 | J48: 30.61 | K48: 37.45 | M48: COMPOSIÇÃO | N48: BDI DE OBRA
A49: 1.3.1.14 | B49: RETIRADA DE ESPELHO FIXADO, INCLUSO TRANSPORTE E DEPOSITO EM LOCAL A SER INDICADO PELA FISCALIZAÇÃO (BANHEIRO GABINETE SESI). | C49: M2 | D49: 2.25 | E49: 90.8 | F49: 204.3 | H49: C_CIV0021 | I49: =IF(M49="COMPOSIÇÃO",LEFT(RIGHT(CAMINHO_DO_BD,19),14),IF(M49="INSUMO","INSUMO " & LEFT(RIGHT(CAMINHO_DO_BD,19),14),IF(M49="COMPOSIÇÃO PRÓPRIA","COMPOSIÇÃO PRÓPRIA COM BASE NA " & LEFT(RIGHT(CAMINHO_DO_BD,19),14),"PREÇO MÉDIO DE ORÇAMENTOS"))) -> COMPOSIÇÃO PRÓPRIA COM BASE NA SINAPI-10-2022 | J49: 74.21 | K49: =ROUND(J49*(1+BDI),2) -> 90.8 | M49: COMPOSIÇÃO PRÓPRIA | N49: BDI DE OBRA
A50: 1.3.1.15 | B50: RASGO EM CONTRAPISO PARA RAMAIS/ DISTRIBUIÇÃO COM DIÂMETROS MAIORES QUE 75 MM. AF_05/2015 | C50: M | D50: 10 | E50: =K50 -> 32.77 | F50: =ROUND(D50*E50,2) -> 327.7 | H50: 90446 | I50: =IF(M50="COMPOSIÇÃO",LEFT(RIGHT(CAMINHO_DO_BD,19),14),IF(M50="INSUMO","INSUMO " & LEFT(RIGHT(CAMINHO_DO_BD,19),14),IF(M50="COMPOSIÇÃO PRÓPRIA","COMPOSIÇÃO PRÓPRIA COM BASE NA " & LEFT(RIGHT(CAMINHO_DO_BD,19),14),"PREÇO MÉDIO DE ORÇAMENTOS"))) -> SINAPI-10-2022 | J50: 26.78 | K50: =ROUND(J50*(1+BDI),2) -> 32.77 | M50: COMPOSIÇÃO | N50: BDI DE OBRA
A52: 1.3.2 | B52: GABINETE SENAI | F52: =SUBTOTAL(9,F53:F64) -> 3335.01
A53: =$A$52&"."&(ROW(A53)-ROW($A$52)) -> 1.3.2.1 | B53: DEMOLIÇÃO DE ALVENARIA DE BLOCO FURADO, DE FORMA MANUAL, SEM REAPROVEITAMENTO. AF_12/2017 - ABERTURA DE VÃOS DE PORTAS | C53: M3 | D53: 0.315 | E53: =K53 -> 62.08 | F53: =ROUND(D53*E53,2) -> 19.56 | H53: 97622 | I53: =IF(M53="COMPOSIÇÃO",LEFT(RIGHT(CAMINHO_DO_BD,19),14),IF(M53="INSUMO","INSUMO " & LEFT(RIGHT(CAMINHO_DO_BD,19),14),IF(M53="COMPOSIÇÃO PRÓPRIA","COMPOSIÇÃO PRÓPRIA COM BASE NA " & LEFT(RIGHT(CAMINHO_DO_BD,19),14),"PREÇO MÉDIO DE ORÇAMENTOS"))) -> SINAPI-10-2022 | J53: 50.74 | K53: =ROUND(J53*(1+BDI),2) -> 62.08 | M53: COMPOSIÇÃO | N53: BDI DE OBRA
A54: =$A$52&"."&(ROW(A54)-ROW($A$52)) -> 1.3.2.2 | B54: REMOÇÃO DE FORRO DE GESSO, DE FORMA MANUAL, SEM REAPROVEITAMENTO. AF_12/2017 | C54: M2 | D54: 58.14 | E54: 5.38 | F54: 312.79 | H54: 97641 | I54: SINAPI-10-2022 | J54: 4.4 | K54: 5.38 | M54: COMPOSIÇÃO | N54: BDI DE OBRA
A55: 1.3.2.3 | B55: REMOÇÃO DE TRAMA METÁLICA OU DE MADEIRA PARA FORRO, DE FORMA MANUAL, SEM REAPROVEITAMENTO. AF_12/2017 - REMOÇÃO DE ESTRUTURA DE FORRO. | C55: M2 | D55: 58.14 | E55: 3.14 | F55: 182.56 | H55: 97642 | I55: SINAPI-10-2022 | J55: 2.57 | K55: 3.14 | M55: COMPOSIÇÃO | N55: BDI DE OBRA
A56: 1.3.2.4 | B56: REMOÇÃO DE CORTINA DE JANELAS COM DESTINAÇÃO A SER DEFINIDO PELA FISCALIZAÇÃO | C56: M2 | D56: 19.94 | E56: 8.09 | F56: 161.31 | H56: 97638 | I56: SINAPI-10-2022 | J56: 6.61 | K56: 8.09 | M56: COMPOSIÇÃO | N56: BDI DE OBRA
A57: 1.3.2.5 | B57: REMOÇÃO DE PORTAS, DE FORMA MANUAL, SEM REAPROVEITAMENTO.COM DESTINAÇÃO A SER DEFINIDO PELA FISCALIZAÇÃO | C57: M2 | D57: 5.25 | E57: 10.09 | F57: 52.97 | H57: 97644 | I57: SINAPI-10-2022 | J57: 8.25 | K57: =ROUND(J57*(1+BDI),2) -> 10.09 | M57: COMPOSIÇÃO | N57: BDI DE OBRA
A58: 1.3.2.6 | B58: REMOÇÃO DE PAPEL DE PAREDE, INCLUSIVE LIMPEZA DO EXCESSO DE COLA NA PAREDE INCLUSO SALA GABINETE E LAVABO | C58: M2 | D58: 72.01 | E58: =K58 -> 4.76 | F58: =ROUND(D58*E58,2) -> 342.77 | H58: C_CIV0304 | I58: COMPOSIÇÃO PRÓPRIA COM BASE NA SINAPI-10-2022 | J58: 3.89 | K58: =ROUND(J58*(1+BDI),2) -> 4.76 | M58: COMPOSIÇÃO PRÓPRIA | N58: BDI DE OBRA
A59: 1.3.2.7 | B59: DEMOLIÇÃO DE RODAPÉ, DE FORMA MANUAL, SEM REAPROVEITAMENTO. AF_12/2017 | C59: M | D59: 43.61 | E59: =K59 -> 2.83 | F59: =ROUND(D59*E59,2) -> 123.42 | H59: 97632 | I59: SINAPI-10-2022 | J59: 2.31 | K59: =ROUND(J59*(1+BDI),2) -> 2.83 | M59: COMPOSIÇÃO | N59: BDI DE OBRA
A60: 1.3.2.8 | B60: REMOÇÃO DE JANELAS, DE FORMA MANUAL, SEM REAPROVEITAMENTO. AF_12/2017 GABINETE DA DIRETORIA (ATUAL SALA DE REUNIÃO) COM DESTINAÇÃO A SER DEFINIDO PELA FISCALIZAÇÃO | C60: M2 | D60: 11.72 | E60: =K60 -> 37.45 | F60: =ROUND(D60*E60,2) -> 438.91 | H60: 97645 | I60: SINAPI-10-2022 | J60: 30.61 | K60: 37.45 | M60: COMPOSIÇÃO | N60: BDI DE OBRA
A61: 1.3.2.9 | B61: DEMOLIÇÃO DE REVESTIMENTO DE PISO, DE FORMA MANUAL, SEM REAPROVEITAMENTO. AF_12/2017 - GABINETE E SALA DE REUNIÃO DIRETORIA | C61: M2 | D61: 54.34 | E61: 24.76 | F61: 1345.46 | H61: 97633 | I61: SINAPI-10-2022 | J61: 20.24 | K61: =ROUND(J61*(1+BDI),2) -> 24.76 | M61: COMPOSIÇÃO | N61: BDI DE OBRA
A62: 1.3.2.10 | B62: RETIRADA DE ESPELHO FIXADO, INCLUSO TRANSPORTE E DEPOSITO EM LOCAL A SER INDICADO PELA FISCALIZAÇÃO ATUAL GABINETE DA DIRETORIA | C62: M2 | D62: 3.48 | E62: =K62 -> 90.8 | F62: =ROUND(D62*E62,2) -> 315.98 | H62: C_CIV0021 | I62: =IF(M62="COMPOSIÇÃO",LEFT(RIGHT(CAMINHO_DO_BD,19),14),IF(M62="INSUMO","INSUMO " & LEFT(RIGHT(CAMINHO_DO_BD,19),14),IF(M62="COMPOSIÇÃO PRÓPRIA","COMPOSIÇÃO PRÓPRIA COM BASE NA " & LEFT(RIGHT(CAMINHO_DO_BD,19),14),"PREÇO MÉDIO DE ORÇAMENTOS"))) -> COMPOSIÇÃO PRÓPRIA COM BASE NA SINAPI-10-2022 | J62: 74.21 | K62: =ROUND(J62*(1+BDI),2) -> 90.8 | M62: COMPOSIÇÃO PRÓPRIA | N62: BDI DE OBRA
A63: 1.3.2.11 | B63: REMOÇÃO DE METAIS SANITÁRIOS, DE FORMA MANUAL, SEM REAPROVEITAMENTO. AF_12/2017 BANHEIRO SENAI COM DESTINAÇÃO A SER DEFINIDO PELA FISCALIZAÇÃO | C63: UN | D63: 4 | E63: 9.82 | F63: 39.28 | H63: 97666 | I63: =IF(M63="COMPOSIÇÃO",LEFT(RIGHT(CAMINHO_DO_BD,19),14),IF(M63="INSUMO","INSUMO " & LEFT(RIGHT(CAMINHO_DO_BD,19),14),IF(M63="COMPOSIÇÃO PRÓPRIA","COMPOSIÇÃO PRÓPRIA COM BASE NA " & LEFT(RIGHT(CAMINHO_DO_BD,19),14),"PREÇO MÉDIO DE ORÇAMENTOS"))) -> SINAPI-10-2022 | J63: 8.03 | K63: =ROUND(J63*(1+BDI),2) -> 9.82 | M63: COMPOSIÇÃO | N63: BDI DE OBRA
A65: 1.3.3 | B65: RECEPÇÃO/ARQUIVO | F65: =SUBTOTAL(9,F66:F76) -> 2556.4
A66: =$A$65&"."&(ROW(A66)-ROW($A$65)) -> 1.3.3.1 | B66: REMOÇÃO DE PAREDE DE GESSO, DE FORMA MANUAL, SEM REAPROVEITAMENTO. AF_12/2017 - SALA DE ARQUIVO | C66: M2 | D66: 17.4 | E66: =K66 -> 8.09 | F66: =ROUND(D66*E66,2) -> 140.77 | H66: 97638 | I66: =IF(M66="COMPOSIÇÃO",LEFT(RIGHT(CAMINHO_DO_BD,19),14),IF(M66="INSUMO","INSUMO " & LEFT(RIGHT(CAMINHO_DO_BD,19),14),IF(M66="COMPOSIÇÃO PRÓPRIA","COMPOSIÇÃO PRÓPRIA COM BASE NA " & LEFT(RIGHT(CAMINHO_DO_BD,19),14),"PREÇO MÉDIO DE ORÇAMENTOS"))) -> SINAPI-10-2022 | J66: 6.61 | K66: =ROUND(J66*(1+BDI),2) -> 8.09 | M66: COMPOSIÇÃO | N66: BDI DE OBRA
A67: 1.3.3.2 | B67: DESMONTAGEM E RETIRADA DE VIDRO TEMPERADO INCOLOR, INCLUSO TRANSPORTE E DEPOSITO EM LOCAL A SER INDICADO PELA FISCALIZAÇÃO PORTA DE ACESSO PARA A RECEPÇÃO/VISORES DE DIVISÓRIAS PARA A SALA DE ARQUIVO | C67: M2 | D67: 6.76 | E67: =K67 -> 25.23 | F67: =ROUND(D67*E67,2) -> 170.55 | H67: C_CIV0012 | I67: COMPOSIÇÃO PRÓPRIA COM BASE NA SINAPI-10-2022 | J67: 20.62 | K67: =ROUND(J67*(1+BDI),2) -> 25.23 | M67: COMPOSIÇÃO PRÓPRIA | N67: BDI DE OBRA
A68: 1.3.3.3 | B68: REMOÇÃO DE FORRO DE GESSO, DE FORMA MANUAL, SEM REAPROVEITAMENTO. AF_12/2017 ATUAL RECEPÇÃO EXISTENTE | C68: M2 | D68: 31.47 | E68: 5.38 | F68: 169.31 | H68: 97641 | I68: SINAPI-10-2022 | J68: 4.4 | K68: =ROUND(J68*(1+BDI),2) -> 5.38 | M68: COMPOSIÇÃO | N68: BDI DE OBRA
A69: 1.3.3.4 | B69: REMOÇÃO DE FORROS DE DRYWALL, PVC E FIBROMINERAL, DE FORMA MANUAL, SEM REAPROVEITAMENTO. AF_12/2017 ANTIGA SALA DA AUDITORIA | C69: M2 | D69: 47.46 | E69: =K69 -> 1.75 | F69: =ROUND(D69*E69,2) -> 83.06 | H69: 97640 | I69: SINAPI-10-2022 | J69: 1.43 | K69: =ROUND(J69*(1+BDI),2) -> 1.75 | M69: COMPOSIÇÃO | N69: BDI DE OBRA
A70: 1.3.3.5 | B70: REMOÇÃO DE TRAMA METÁLICA OU DE MADEIRA PARA FORRO, DE FORMA MANUAL, SEM REAPROVEITAMENTO. AF_12/2017 - REMOÇÃO DE ESTRUTURA DE FORRO. | C70: M2 | D70: 78.93 | E70: 3.14 | F70: 247.84 | H70: 97642 | I70: SINAPI-10-2022 | J70: 2.57 | K70: =ROUND(J70*(1+BDI),2) -> 3.14 | M70: COMPOSIÇÃO | N70: BDI DE OBRA
A71: 1.3.3.6 | B71: REMOÇÃO DE PAPEL DE PAREDE, INCLUSIVE LIMPEZA DO EXCESSO DE COLA NA PAREDE | C71: M2 | D71: 69.34 | E71: 4.76 | F71: 330.06 | H71: C_CIV0304 | I71: COMPOSIÇÃO PRÓPRIA COM BASE NA SINAPI-10-2022 | J71: 3.89 | K71: =ROUND(J71*(1+BDI),2) -> 4.76 | M71: COMPOSIÇÃO PRÓPRIA | N71: BDI DE OBRA
A72: 1.3.3.7 | B72: DEMOLIÇÃO DE RODAPÉ, DE FORMA MANUAL, SEM REAPROVEITAMENTO. AF_12/2017 RECEPÇÃO | C72: M | D72: 27.23 | E72: =K72 -> 2.83 | F72: =ROUND(D72*E72,2) -> 77.06 | H72: 97632 | I72: SINAPI-10-2022 | J72: 2.31 | K72: =ROUND(J72*(1+BDI),2) -> 2.83 | M72: COMPOSIÇÃO | N72: BDI DE OBRA
A73: 1.3.3.8 | B73: LIXAMENTO DE SUPERFÍCIE PARA PREPARO DE ASSENTAMENTO DE REVESTIMENTO. RODAPÉ PAREDE DO BANHEIRO) | C73: M2 | D73: 35.95 | E73: =K73 -> 3.93 | F73: =ROUND(D73*E73,2) -> 141.28 | H73: 102488 | I73: SINAPI-10-2022 | J73: 3.21 | K73: =ROUND(J73*(1+BDI),2) -> 3.93 | M73: COMPOSIÇÃO | N73: BDI DE OBRA
A74: 1.3.3.9 | B74: DEMOLIÇÃO DE REVESTIMENTO DE PISO, DE FORMA MANUAL, SEM REAPROVEITAMENTO. AF_12/2017 - | C74: M2 | D74: 46.89 | E74: 24.76 | F74: 1161 | H74: 97633 | I74: SINAPI-10-2022 | J74: 20.24 | K74: =ROUND(J74*(1+BDI),2) -> 24.76 | M74: COMPOSIÇÃO | N74: BDI DE OBRA
A75: 1.3.3.10 | B75: REMOÇÃO DE PAINEIS COM LOGOMARCA DA RECEPÇÃO COM DESTINAÇÃO A SER DEFINIDO PELA FISCALIZAÇÃO | C75: M2 | D75: 12.76 | E75: =K75 -> 2.78 | F75: =ROUND(D75*E75,2) -> 35.47 | H75: 97637 | I75: =IF(M75="COMPOSIÇÃO",LEFT(RIGHT(CAMINHO_DO_BD,19),14),IF(M75="INSUMO","INSUMO " & LEFT(RIGHT(CAMINHO_DO_BD,19),14),IF(M75="COMPOSIÇÃO PRÓPRIA","COMPOSIÇÃO PRÓPRIA COM BASE NA " & LEFT(RIGHT(CAMINHO_DO_BD,19),14),"PREÇO MÉDIO DE ORÇAMENTOS"))) -> SINAPI-10-2022 | J75: 2.27 | K75: =ROUND(J75*(1+BDI),2) -> 2.78 | M75: COMPOSIÇÃO | N75: BDI DE OBRA
A77: 1.4 | B77: ESTRUTURA DE CONCRETO | F77: =SUBTOTAL(9,F78:F84) -> 367.97
A79: 1.4.1 | B79: GABINETE SESI | F79: =SUBTOTAL(9,F80:F81) -> 258.36
A80: =$A$79&"."&(ROW(A80)-ROW($A$79)) -> 1.4.1.1 | B80: VERGA PRÉ-MOLDADA PARA PORTAS COM MAIS DE 1,5 M DE VÃO. AF_03/2016 | C80: M | D80: 3.3 | E80: =K80 -> 78.29 | F80: =ROUND(D80*E80,2) -> 258.36 | H80: 93185 | I80: =IF(M80="COMPOSIÇÃO",LEFT(RIGHT(CAMINHO_DO_BD,19),14),IF(M80="INSUMO","INSUMO " & LEFT(RIGHT(CAMINHO_DO_BD,19),14),IF(M80="COMPOSIÇÃO PRÓPRIA","COMPOSIÇÃO PRÓPRIA COM BASE NA " & LEFT(RIGHT(CAMINHO_DO_BD,19),14),"PREÇO MÉDIO DE ORÇAMENTOS"))) -> SINAPI-10-2022 | J80: 63.99 | K80: =ROUND(J80*(1+BDI),2) -> 78.29 | M80: COMPOSIÇÃO | N80: BDI DE OBRA
A82: 1.4.2 | B82: GABINETE SENAI | F82: =SUBTOTAL(9,F83:F84) -> 109.61
A83: =$A$82&"."&(ROW(A83)-ROW($A$82)) -> 1.4.2.1 | B83: VERGA PRÉ-MOLDADA PARA PORTAS COM MAIS DE 1,5 M DE VÃO. AF_03/2016 | C83: M | D83: 1.4 | E83: =K83 -> 78.29 | F83: =ROUND(D83*E83,2) -> 109.61 | H83: 93185 | I83: =IF(M83="COMPOSIÇÃO",LEFT(RIGHT(CAMINHO_DO_BD,19),14),IF(M83="INSUMO","INSUMO " & LEFT(RIGHT(CAMINHO_DO_BD,19),14),IF(M83="COMPOSIÇÃO PRÓPRIA","COMPOSIÇÃO PRÓPRIA COM BASE NA " & LEFT(RIGHT(CAMINHO_DO_BD,19),14),"PREÇO MÉDIO DE ORÇAMENTOS"))) -> SINAPI-10-2022 | J83: 63.99 | K83: =ROUND(J83*(1+BDI),2) -> 78.29 | M83: COMPOSIÇÃO | N83: BDI DE OBRA
A85: 1.5 | B85: ALVENARIAS E PAINÉIS GABINETE SESI/SALA DE ARQUIVO/RECEPÇÃO | F85: =SUBTOTAL(9,F86:F91) -> 14154.01
A86: =$A$85&"."&(ROW(A86)-ROW($A$85)) -> 1.5.1 | B86: ALVENARIA DE VEDAÇÃO DE BLOCOS CERÂMICOS FURADOS NA HORIZONTAL DE 9X19X19 CM (ESPESSURA 9 CM) E ARGAMASSA DE ASSENTAMENTO COM PREPARO EM BETONEIRA. AF_12/2021 | C86: M2 | D86: 2.89 | E86: =K86 -> 113.53 | F86: =ROUND(D86*E86,2) -> 328.1 | H86: 103328 | I86: =IF(M86="COMPOSIÇÃO",LEFT(RIGHT(CAMINHO_DO_BD,19),14),IF(M86="INSUMO","INSUMO " & LEFT(RIGHT(CAMINHO_DO_BD,19),14),IF(M86="COMPOSIÇÃO PRÓPRIA","COMPOSIÇÃO PRÓPRIA COM BASE NA " & LEFT(RIGHT(CAMINHO_DO_BD,19),14),"PREÇO MÉDIO DE ORÇAMENTOS"))) -> SINAPI-10-2022 | J86: 92.79 | K86: =ROUND(J86*(1+BDI),2) -> 113.53 | M86: COMPOSIÇÃO | N86: BDI DE OBRA
A87: =$A$85&"."&(ROW(A87)-ROW($A$85)) -> 1.5.2 | B87: CHAPISCO APLICADO EM ALVENARIAS E ESTRUTURAS DE CONCRETO INTERNAS, COM COLHER DE PEDREIRO. ARGAMASSA TRAÇO 1:3 COM PREPARO MANUAL. AF_10/2022 | C87: M2 | D87: 3.78 | E87: 5.95 | F87: 22.49 | H87: 87878 | I87: =IF(M87="COMPOSIÇÃO",LEFT(RIGHT(CAMINHO_DO_BD,19),14),IF(M87="INSUMO","INSUMO " & LEFT(RIGHT(CAMINHO_DO_BD,19),14),IF(M87="COMPOSIÇÃO PRÓPRIA","COMPOSIÇÃO PRÓPRIA COM BASE NA " & LEFT(RIGHT(CAMINHO_DO_BD,19),14),"PREÇO MÉDIO DE ORÇAMENTOS"))) -> SINAPI-10-2022 | J87: 4.86 | K87: =ROUND(J87*(1+BDI),2) -> 5.95 | M87: COMPOSIÇÃO | N87: BDI DE OBRA
A88: 1.5.3 | B88: EMBOÇO, PARA RECEBIMENTO DE CERÂMICA, EM ARGAMASSA TRAÇO 1:2:8, PREPARO MECÂNICO COM BETONEIRA 400L, APLICADO MANUALMENTE EM FACES INTERNAS DE PAREDES, PARA AMBIENTE COM ÁREA MENOR QUE 5M2, ESPESSURA DE 20MM, COM EXECUÇÃO DE TALISCAS. AF_06/2014 | C88: M2 | D88: 3.78 | E88: =K88 -> 49.05 | F88: =ROUND(D88*E88,2) -> 185.41 | H88: 87527 | I88: =IF(M88="COMPOSIÇÃO",LEFT(RIGHT(CAMINHO_DO_BD,19),14),IF(M88="INSUMO","INSUMO " & LEFT(RIGHT(CAMINHO_DO_BD,19),14),IF(M88="COMPOSIÇÃO PRÓPRIA","COMPOSIÇÃO PRÓPRIA COM BASE NA " & LEFT(RIGHT(CAMINHO_DO_BD,19),14),"PREÇO MÉDIO DE ORÇAMENTOS"))) -> SINAPI-10-2022 | J88: 40.09 | K88: =ROUND(J88*(1+BDI),2) -> 49.05 | M88: COMPOSIÇÃO | N88: BDI DE OBRA
A89: 1.5.4 | B89: FORNECIMENTO E INSTALAÇÃO DE PAREDE DE GESSO ACARTONADO ESP. 10CM, FACE DUPLA, COM ISOLAMENTO TERMO-ACÚSTICO DE LÃ DE ROCHA 50MM (CONSUMO CONF. TCPO 04840.8.5.1, MONTANTE M75-0,62kg/m, GUIA 75 ) | C89: M2 | D89: 49.88 | E89: =K89 -> 246.96 | F89: =ROUND(D89*E89,2) -> 12318.36 | H89: C_CIV0036 | I89: =IF(M89="COMPOSIÇÃO",LEFT(RIGHT(CAMINHO_DO_BD,19),14),IF(M89="INSUMO","INSUMO " & LEFT(RIGHT(CAMINHO_DO_BD,19),14),IF(M89="COMPOSIÇÃO PRÓPRIA","COMPOSIÇÃO PRÓPRIA COM BASE NA " & LEFT(RIGHT(CAMINHO_DO_BD,19),14),"PREÇO MÉDIO DE ORÇAMENTOS"))) -> COMPOSIÇÃO PRÓPRIA COM BASE NA SINAPI-10-2022 | J89: 201.85 | K89: =ROUND(J89*(1+BDI),2) -> 246.96 | M89: COMPOSIÇÃO PRÓPRIA | N89: BDI DE OBRA
A90: 1.5.5 | B90: REQUADRO EM PORTAS E JANELAS EM ARGAMASSA TRACO 1:2:8, PREPARO MECANICO COM BETONEIRA 400 L | C90: M | D90: 27.8 | E90: =K90 -> 46.75 | F90: =ROUND(D90*E90,2) -> 1299.65 | H90: C_CIV0328 | I90: =IF(M90="COMPOSIÇÃO",LEFT(RIGHT(CAMINHO_DO_BD,19),14),IF(M90="INSUMO","INSUMO " & LEFT(RIGHT(CAMINHO_DO_BD,19),14),IF(M90="COMPOSIÇÃO PRÓPRIA","COMPOSIÇÃO PRÓPRIA COM BASE NA " & LEFT(RIGHT(CAMINHO_DO_BD,19),14),"PREÇO MÉDIO DE ORÇAMENTOS"))) -> COMPOSIÇÃO PRÓPRIA COM BASE NA SINAPI-10-2022 | J90: 38.21 | K90: =ROUND(J90*(1+BDI),2) -> 46.75 | M90: COMPOSIÇÃO PRÓPRIA | N90: BDI DE OBRA | AF90: 1299.65
D91: ,
A92: 1.6 | B92: ESQUADRIAS | F92: =SUBTOTAL(9,F93:F106) -> 46261.46
A94: 1.6.1 | B94: GABINETE SESI/MARKETING | F94: =SUBTOTAL(9,F95:F97) -> 31296.23
A95: =$A$94&"."&(ROW(A95)-ROW($A$94)) -> 1.6.1.1 | B95: JANELA FIXA DE ALUMÍNIO PARA VIDRO, COM VIDRO, BATENTE E FERRAGENS. EXCLUSIVE ACABAMENTO, ALIZAR E CONTRAMARCO. FORNECIMENTO E INSTALAÇÃO. AF_12/2019 | C95: M2 | D95: 22.98 | E95: =K95 -> 930.39 | F95: =ROUND(D95*E95,2) -> 21380.36 | H95: 100674 | I95: =IF(M95="COMPOSIÇÃO",LEFT(RIGHT(CAMINHO_DO_BD,19),14),IF(M95="INSUMO","INSUMO " & LEFT(RIGHT(CAMINHO_DO_BD,19),14),IF(M95="COMPOSIÇÃO PRÓPRIA","COMPOSIÇÃO PRÓPRIA COM BASE NA " & LEFT(RIGHT(CAMINHO_DO_BD,19),14),"PREÇO MÉDIO DE ORÇAMENTOS"))) -> SINAPI-10-2022 | J95: 760.43 | K95: =ROUND(J95*(1+BDI),2) -> 930.39 | M95: COMPOSIÇÃO | N95: BDI DE OBRA
A96: =$A$94&"."&(ROW(A96)-ROW($A$94)) -> 1.6.1.2 | B96: JANELA DE ALUMÍNIO TIPO MAXIM-AR, COM VIDROS, BATENTE E FERRAGENS. EXCLUSIVE ALIZAR, ACABAMENTO E CONTRAMARCO. FORNECIMENTO E INSTALAÇÃO. AF_12/2019 | C96: M2 | D96: 11.49 | E96: 863 | F96: 9915.87 | H96: 94569 | I96: =IF(M96="COMPOSIÇÃO",LEFT(RIGHT(CAMINHO_DO_BD,19),14),IF(M96="INSUMO","INSUMO " & LEFT(RIGHT(CAMINHO_DO_BD,19),14),IF(M96="COMPOSIÇÃO PRÓPRIA","COMPOSIÇÃO PRÓPRIA COM BASE NA " & LEFT(RIGHT(CAMINHO_DO_BD,19),14),"PREÇO MÉDIO DE ORÇAMENTOS"))) -> SINAPI-10-2022 | J96: 705.35 | K96: =ROUND(J96*(1+BDI),2) -> 863 | M96: COMPOSIÇÃO | N96: BDI DE OBRA
A98: 1.6.2 | B98: GABINETE SENAI | F98: =SUBTOTAL(9,F99:F101) -> 10432.08
A99: =$A$98&"."&(ROW(A99)-ROW($A$98)) -> 1.6.2.1 | B99: JANELA FIXA DE ALUMÍNIO PARA VIDRO, COM VIDRO, BATENTE E FERRAGENS. EXCLUSIVE ACABAMENTO, ALIZAR E CONTRAMARCO. FORNECIMENTO E INSTALAÇÃO. AF_12/2019 | C99: M2 | D99: 7.66 | E99: =K99 -> 930.39 | F99: =ROUND(D99*E99,2) -> 7126.79 | H99: 100674 | I99: =IF(M99="COMPOSIÇÃO",LEFT(RIGHT(CAMINHO_DO_BD,19),14),IF(M99="INSUMO","INSUMO " & LEFT(RIGHT(CAMINHO_DO_BD,19),14),IF(M99="COMPOSIÇÃO PRÓPRIA","COMPOSIÇÃO PRÓPRIA COM BASE NA " & LEFT(RIGHT(CAMINHO_DO_BD,19),14),"PREÇO MÉDIO DE ORÇAMENTOS"))) -> SINAPI-10-2022 | J99: 760.43 | K99: =ROUND(J99*(1+BDI),2) -> 930.39 | M99: COMPOSIÇÃO | N99: BDI DE OBRA
A100: =$A$98&"."&(ROW(A100)-ROW($A$98)) -> 1.6.2.2 | B100: JANELA DE ALUMÍNIO TIPO MAXIM-AR, COM VIDROS, BATENTE E FERRAGENS. EXCLUSIVE ALIZAR, ACABAMENTO E CONTRAMARCO. FORNECIMENTO E INSTALAÇÃO. AF_12/2019 | C100: M2 | D100: 3.83 | E100: =K100 -> 863 | F100: =ROUND(D100*E100,2) -> 3305.29 | H100: 94569 | I100: =IF(M100="COMPOSIÇÃO",LEFT(RIGHT(CAMINHO_DO_BD,19),14),IF(M100="INSUMO","INSUMO " & LEFT(RIGHT(CAMINHO_DO_BD,19),14),IF(M100="COMPOSIÇÃO PRÓPRIA","COMPOSIÇÃO PRÓPRIA COM BASE NA " & LEFT(RIGHT(CAMINHO_DO_BD,19),14),"PREÇO MÉDIO DE ORÇAMENTOS"))) -> SINAPI-10-2022 | J100: 705.35 | K100: =ROUND(J100*(1+BDI),2) -> 863 | M100: COMPOSIÇÃO | N100: BDI DE OBRA
A102: 1.6.3 | B102: PORTA DE ACESSO PRINCIPAL DA RECEPÇÃO | F102: =SUBTOTAL(9,F103:F106) -> 4533.15
A103: =$A$102&"."&(ROW(A103)-ROW($A$102)) -> 1.6.3.1 | B103: PORTA DE ABRIR DE VIDRO TEMPERADO INCOLOR, 1,10X240 CM, ESPESSURA 10 MM, INCLUSIVE ACESSÓRIOS. AF_01/2021 - PORTA DE ACESSO PRINCIPAL RECEPÇÃO COM REAPROVEITAMENTO DE PUXADOR | C103: UN | D103: 1 | E103: =K103 -> 1960.61 | F103: =ROUND(D103*E103,2) -> 1960.61 | H103: C_CIV0306 | I103: =IF(M103="COMPOSIÇÃO",LEFT(RIGHT(CAMINHO_DO_BD,19),14),IF(M103="INSUMO","INSUMO " & LEFT(RIGHT(CAMINHO_DO_BD,19),14),IF(M103="COMPOSIÇÃO PRÓPRIA","COMPOSIÇÃO PRÓPRIA COM BASE NA " & LEFT(RIGHT(CAMINHO_DO_BD,19),14),"PREÇO MÉDIO DE ORÇAMENTOS"))) -> COMPOSIÇÃO PRÓPRIA COM BASE NA SINAPI-10-2022 | J103: 1602.46 | K103: =ROUND(J103*(1+BDI),2) -> 1960.61 | M103: COMPOSIÇÃO PRÓPRIA | N103: BDI DE OBRA
A104: =$A$102&"."&(ROW(A104)-ROW($A$102)) -> 1.6.3.2 | B104: DIVISÓRIA FIXA EM VIDRO TEMPERADO INCOLOR 10 MM , SEM ABERTURA. AF_01/2021 VIDRO FIXO PORTA DE ACESSO PRINCIPAL RECEPÇÃO | C104: M2 | D104: 1.92 | E104: =K104 -> 660.32 | F104: =ROUND(D104*E104,2) -> 1267.81 | H104: 102235 | I104: =IF(M104="COMPOSIÇÃO",LEFT(RIGHT(CAMINHO_DO_BD,19),14),IF(M104="INSUMO","INSUMO " & LEFT(RIGHT(CAMINHO_DO_BD,19),14),IF(M104="COMPOSIÇÃO PRÓPRIA","COMPOSIÇÃO PRÓPRIA COM BASE NA " & LEFT(RIGHT(CAMINHO_DO_BD,19),14),"PREÇO MÉDIO DE ORÇAMENTOS"))) -> SINAPI-10-2022 | J104: 539.7 | K104: =ROUND(J104*(1+BDI),2) -> 660.32 | M104: COMPOSIÇÃO | N104: BDI DE OBRA
A105: 1.6.3.3 | B105: MOLA HIDRAULICA DE PISO PARA PORTA DE VIDRO TEMPERADO. AF_01/2021 | C105: UN | D105: 1 | E105: =K105 -> 1304.73 | F105: =ROUND(D105*E105,2) -> 1304.73 | H105: 102188 | I105: =IF(M105="COMPOSIÇÃO",LEFT(RIGHT(CAMINHO_DO_BD,19),14),IF(M105="INSUMO","INSUMO " & LEFT(RIGHT(CAMINHO_DO_BD,19),14),IF(M105="COMPOSIÇÃO PRÓPRIA","COMPOSIÇÃO PRÓPRIA COM BASE NA " & LEFT(RIGHT(CAMINHO_DO_BD,19),14),"PREÇO MÉDIO DE ORÇAMENTOS"))) -> SINAPI-10-2022 | J105: 1066.39 | K105: =ROUND(J105*(1+BDI),2) -> 1304.73 | M105: COMPOSIÇÃO | N105: BDI DE OBRA
A107: 1.7 | B107: PISOS | F107: =SUBTOTAL(9,F108:F114) -> 49127.5
A108: =$A$107&"."&(ROW(A108)-ROW($A$107)) -> 1.7.1 | B108: CONTRAPISO EM ARGAMASSA TRAÇO 1:4 (CIMENTO E AREIA), PREPARO MECÂNICO COM BETONEIRA 400 L, APLICADO EM ÁREAS SECAS SOBRE LAJE, ADERIDO, ACABAMENTO NÃO REFORÇADO, ESPESSURA 3CM. SARRAFEAMENTO, POLIMENTO COM MÁQUINA POLITRIZ INDUSTRIAL. RECEPÇÃO/COWOORKING/SALA REUNIÃO DIREÇÃO SENAI (REGULARIZAÇÃO) | C108: M2 | D108: 83.91 | E108: =K108 -> 68.33 | F108: =ROUND(D108*E108,2) -> 5733.57 | H108: C_CIV0303 | I108: =IF(M108="COMPOSIÇÃO",LEFT(RIGHT(CAMINHO_DO_BD,19),14),IF(M108="INSUMO","INSUMO " & LEFT(RIGHT(CAMINHO_DO_BD,19),14),IF(M108="COMPOSIÇÃO PRÓPRIA","COMPOSIÇÃO PRÓPRIA COM BASE NA " & LEFT(RIGHT(CAMINHO_DO_BD,19),14),"PREÇO MÉDIO DE ORÇAMENTOS"))) -> COMPOSIÇÃO PRÓPRIA COM BASE NA SINAPI-10-2022 | J108: 55.85 | K108: =ROUND(J108*(1+BDI),2) -> 68.33 | M108: COMPOSIÇÃO PRÓPRIA | N108: BDI DE OBRA
A109: =$A$107&"."&(ROW(A109)-ROW($A$107)) -> 1.7.2 | B109: CONTRAPISO DE CONCRETO, ESPESSURA 7CM, PREPARO MECANICO (BANHEIRO SUPERINTENDENCIA) | C109: M2 | D109: 4.4 | E109: =K109 -> 42.03 | F109: =ROUND(D109*E109,2) -> 184.93 | H109: C_CIV0095 | I109: COMPOSIÇÃO PRÓPRIA COM BASE NA SINAPI-10-2022 | J109: 34.35 | K109: 42.03 | M109: COMPOSIÇÃO PRÓPRIA | N109: BDI DE OBRA
A110: 1.7.3 | B110: FORNECIMENTO E INSTALAÇÃO DE PISO LAMINADO QUICK - STEP SMART (HYDRO SEAL) COR PATINA COTTAGE GABINETE E SALA DE REUNIÃO DA SUPERINTENDENCIA | C110: M2 | D110: 19.32 | E110: =K110 -> 198.24 | F110: =ROUND(D110*E110,2) -> 3830 | H110: C_CIV0307 | I110: COMPOSIÇÃO PRÓPRIA COM BASE NA SINAPI-10-2022 | J110: 162.03 | K110: 198.24 | M110: COMPOSIÇÃO PRÓPRIA | N110: BDI DE OBRA
A111: 1.7.4 | B111: FORNECIMENTO E INSTALAÇÃO DE ACABAMENTO DE PISO LAMINADO QUICK - STEP SMART (HYDRO SEAL) COR PATINA COTTAGE ENTRE PORTAS DE DIVISÃO DE AMBIENTES | C111: M2 | D111: 0.21 | E111: =K111 -> 198.24 | F111: =ROUND(D111*E111,2) -> 41.63 | H111: C_CIV0307 | I111: COMPOSIÇÃO PRÓPRIA COM BASE NA SINAPI-10-2022 | J111: 162.03 | K111: 198.24 | M111: COMPOSIÇÃO PRÓPRIA | N111: BDI DE OBRA
A112: 1.7.5 | B112: FORNECIMENTO E INSTALAÇÃO DE PISO PORCELANATO FOSSILE, POLIDO, 1,20 X 0,60 M, REF.: ELIANE OU EQUIVALENTE BANHEIRO GABINETE SESI | C112: M2 | D112: 4.41 | E112: =K112 -> 247.64 | F112: =ROUND(D112*E112,2) -> 1092.09 | H112: C_CIV0308 | I112: COMPOSIÇÃO PRÓPRIA COM BASE NA SINAPI-10-2022 | J112: 202.4 | K112: 247.64 | M112: COMPOSIÇÃO PRÓPRIA | N112: BDI DE OBRA
A113: 1.7.6 | B113: PISO VINILICO - REF. TARKETT, COR AVEIA, TEXTURA LISA, LINHA AMBIENTA SERIES, 184X950MMX0,7MM ARQUIVO SESI/SENAI, RECEPÇÃO, COWOORKING, GABINETE E SALA DE REUNIÃO SENAI | C113: M2 | D113: 118.8 | E113: =K113 -> 321.93 | F113: =ROUND(D113*E113,2) -> 38245.28 | H113: 101727 | I113: SINAPI-10-2022 | J113: 263.12 | K113: 321.93 | M113: COMPOSIÇÃO | N113: BDI DE OBRA
A115: 1.8 | B115: REVESTIMENTOS | F115: =SUBTOTAL(9,F116:F129) -> 49713.76
A117: 1.8.1 | B117: AZULEJO | F117: =SUBTOTAL(9,F118:F119) -> 7262.44
A118: =$A$117&"."&(ROW(A118)-ROW($A$117)) -> 1.8.1.1 | B118: FORNECIMENTO E INSTALAÇÃO DE REVESTIMENTO CASTELATTO PEDRA PUGLIA COR FENDI OU SIMILAR SALA DE REUNIÃO SUPERINTENDENCIA SESI | C118: M² | D118: 9.28 | E118: =K118 -> 782.59 | F118: =ROUND(D118*E118,2) -> 7262.44 | H118: C_CIV0314 | I118: =IF(M118="COMPOSIÇÃO",LEFT(RIGHT(CAMINHO_DO_BD,19),14),IF(M118="INSUMO","INSUMO " & LEFT(RIGHT(CAMINHO_DO_BD,19),14),IF(M118="COMPOSIÇÃO PRÓPRIA","COMPOSIÇÃO PRÓPRIA COM BASE NA " & LEFT(RIGHT(CAMINHO_DO_BD,19),14),"PREÇO MÉDIO DE ORÇAMENTOS"))) -> COMPOSIÇÃO PRÓPRIA COM BASE NA SINAPI-10-2022 | J118: 639.63 | K118: =ROUND(J118*(1+BDI),2) -> 782.59 | M118: COMPOSIÇÃO PRÓPRIA | N118: BDI DE OBRA
A120: 1.8.2 | B120: RODAPÉ | F120: =SUBTOTAL(9,F121:F123) -> 33781
A121: =$A$120&"."&(ROW(A121)-ROW($A$120)) -> 1.8.2.1 | B121: RODAPÉ EM POLIESTIRENO COM 1 FRISO, ALTURA (100X13) MM. AF_09/2020 - COR BRANCA OU EQUIVALENTE GABINETE, SALA DE REUNIÃO E BANHEIRO DA SUPERINTENDENCIA SESI | C121: M | D121: 31.34 | E121: =K121 -> 210.89 | F121: =ROUND(D121*E121,2) -> 6609.29 | H121: C_CIV0309 | I121: =IF(M121="COMPOSIÇÃO",LEFT(RIGHT(CAMINHO_DO_BD,19),14),IF(M121="INSUMO","INSUMO " & LEFT(RIGHT(CAMINHO_DO_BD,19),14),IF(M121="COMPOSIÇÃO PRÓPRIA","COMPOSIÇÃO PRÓPRIA COM BASE NA " & LEFT(RIGHT(CAMINHO_DO_BD,19),14),"PREÇO MÉDIO DE ORÇAMENTOS"))) -> COMPOSIÇÃO PRÓPRIA COM BASE NA SINAPI-10-2022 | J121: 172.37 | K121: =ROUND(J121*(1+BDI),2) -> 210.89 | M121: COMPOSIÇÃO PRÓPRIA | N121: BDI DE OBRA
A122: =$A$120&"."&(ROW(A122)-ROW($A$120)) -> 1.8.2.2 | B122: RODAPÉ COR CINZA URBANO EM POLIESTIRENO - 15 CM - ARQUITECH OU EQUIVALENTE RECEPÇÃO, GABINETE SENAI E SALA DE REUNIÃO SENAI/SALA ARQUIVO | C122: M | D122: 64.42 | E122: =K122 -> 421.79 | F122: =ROUND(D122*E122,2) -> 27171.71 | H122: C_CIV0311 | I122: =IF(M122="COMPOSIÇÃO",LEFT(RIGHT(CAMINHO_DO_BD,19),14),IF(M122="INSUMO","INSUMO " & LEFT(RIGHT(CAMINHO_DO_BD,19),14),IF(M122="COMPOSIÇÃO PRÓPRIA","COMPOSIÇÃO PRÓPRIA COM BASE NA " & LEFT(RIGHT(CAMINHO_DO_BD,19),14),"PREÇO MÉDIO DE ORÇAMENTOS"))) -> COMPOSIÇÃO PRÓPRIA COM BASE NA SINAPI-10-2022 | J122: 344.74 | K122: =ROUND(J122*(1+BDI),2) -> 421.79 | M122: COMPOSIÇÃO PRÓPRIA | N122: BDI DE OBRA
A124: 1.8.3 | B124: GRANITO | F124: =SUBTOTAL(9,F125:F129) -> 8670.32
A125: =$A$124&"."&(ROW(A125)-ROW($A$124)) -> 1.8.3.1 | B125: SOLEIRA EM GRANITO, LARGURA 15 CM, ESPESSURA 3,0 CM, BRANCO ALPHA, ITAUNAS OU SIMILAR | C125: M | D125: 4.2 | E125: =K125 -> 184.59 | F125: =ROUND(D125*E125,2) -> 775.28 | H125: C_CIV0328 | I125: =IF(M125="COMPOSIÇÃO",LEFT(RIGHT(CAMINHO_DO_BD,19),14),IF(M125="INSUMO","INSUMO " & LEFT(RIGHT(CAMINHO_DO_BD,19),14),IF(M125="COMPOSIÇÃO PRÓPRIA","COMPOSIÇÃO PRÓPRIA COM BASE NA " & LEFT(RIGHT(CAMINHO_DO_BD,19),14),"PREÇO MÉDIO DE ORÇAMENTOS"))) -> COMPOSIÇÃO PRÓPRIA COM BASE NA SINAPI-10-2022 | J125: 150.87 | K125: =ROUND(J125*(1+BDI),2) -> 184.59 | M125: COMPOSIÇÃO PRÓPRIA | N125: BDI DE OBRA
A126: =$A$124&"."&(ROW(A126)-ROW($A$124)) -> 1.8.3.2 | B126: SOLEIRA EM GRANITO, LARGURA 30 CM, ESPESSURA 3,0 CM, ALPHA, ITAUNAS OU SIMILAR | C126: M | D126: 1.9 | E126: =K126 -> 313.71 | F126: =ROUND(D126*E126,2) -> 596.05 | H126: C_CIV0305 | I126: =IF(M126="COMPOSIÇÃO",LEFT(RIGHT(CAMINHO_DO_BD,19),14),IF(M126="INSUMO","INSUMO " & LEFT(RIGHT(CAMINHO_DO_BD,19),14),IF(M126="COMPOSIÇÃO PRÓPRIA","COMPOSIÇÃO PRÓPRIA COM BASE NA " & LEFT(RIGHT(CAMINHO_DO_BD,19),14),"PREÇO MÉDIO DE ORÇAMENTOS"))) -> COMPOSIÇÃO PRÓPRIA COM BASE NA SINAPI-10-2022 | J126: 256.4 | K126: =ROUND(J126*(1+BDI),2) -> 313.71 | M126: COMPOSIÇÃO PRÓPRIA | N126: BDI DE OBRA
A127: 1.8.3.3 | B127: PEITORIL DE GRANITO POLIDO - BRANCO ALPHA, ITAUNAS OU SIMILAR | C127: M | D127: 23.2 | E127: =K127 -> 132.79 | F127: =ROUND(D127*E127,2) -> 3080.73 | H127: C_CIV0092 | I127: =IF(M127="COMPOSIÇÃO",LEFT(RIGHT(CAMINHO_DO_BD,19),14),IF(M127="INSUMO","INSUMO " & LEFT(RIGHT(CAMINHO_DO_BD,19),14),IF(M127="COMPOSIÇÃO PRÓPRIA","COMPOSIÇÃO PRÓPRIA COM BASE NA " & LEFT(RIGHT(CAMINHO_DO_BD,19),14),"PREÇO MÉDIO DE ORÇAMENTOS"))) -> COMPOSIÇÃO PRÓPRIA COM BASE NA SINAPI-10-2022 | J127: 108.53 | K127: =ROUND(J127*(1+BDI),2) -> 132.79 | M127: COMPOSIÇÃO PRÓPRIA | N127: BDI DE OBRA
A128: 1.8.3.4 | B128: BANCADA EM QUARTZO POLIDO, COR BRANCO PRIME, SOBRE MÃOS-FRANCESAS METÁLICAS, ESP=2cm COM FRONTÃO 20cm, SAIA COM ACAB. DE MEIA ESQUADRIA E REFORÇO INFERIOR DE BORDA E CORTE PARA INST. DE CORTE COM PIA ESCULPIDA EM PEDRA | C128: M2 | D128: 2.24 | E128: =K128 -> 1883.15 | F128: =ROUND(D128*E128,2) -> 4218.26 | H128: C_CIV0093 | I128: =IF(M128="COMPOSIÇÃO",LEFT(RIGHT(CAMINHO_DO_BD,19),14),IF(M128="INSUMO","INSUMO " & LEFT(RIGHT(CAMINHO_DO_BD,19),14),IF(M128="COMPOSIÇÃO PRÓPRIA","COMPOSIÇÃO PRÓPRIA COM BASE NA " & LEFT(RIGHT(CAMINHO_DO_BD,19),14),"PREÇO MÉDIO DE ORÇAMENTOS"))) -> COMPOSIÇÃO PRÓPRIA COM BASE NA SINAPI-10-2022 | J128: 1539.15 | K128: =ROUND(J128*(1+BDI),2) -> 1883.15 | M128: COMPOSIÇÃO PRÓPRIA | N128: BDI DE OBRA
A130: 1.9 | B130: FORRO | F130: =SUBTOTAL(9,F131:F133) -> 26498.64
A131: =$A$130&"."&(ROW(A131)-ROW($A$130)) -> 1.9.1 | B131: FORRO DE GESSO ACARTONADO COM FACE DUPLA (DUAS PLACAS DE GESSO) FIXO, MONOLÍTICA, APARAFUSADO EM PERFIS METÁLICOS ESPAÇADOS A 0,60 M, SUSPENSOS POR PENDURAIS RÍGIDOS REGULÁVEIS, ESPAÇADOS A CADA 1,00 M, E=12,5 MM GABINETE SESI/SENAI, RECEPÇÃO-COWOORKING, SALAS DE REUNIÃO SESI/SENAI E SALA DE ARQUIVO | C131: M2 | D131: 158.47 | E131: =K131 -> 154.77 | F131: =ROUND(D131*E131,2) -> 24526.4 | H131: C_CIV0273 | I131: =IF(M131="COMPOSIÇÃO",LEFT(RIGHT(CAMINHO_DO_BD,19),14),IF(M131="INSUMO","INSUMO " & LEFT(RIGHT(CAMINHO_DO_BD,19),14),IF(M131="COMPOSIÇÃO PRÓPRIA","COMPOSIÇÃO PRÓPRIA COM BASE NA " & LEFT(RIGHT(CAMINHO_DO_BD,19),14),"PREÇO MÉDIO DE ORÇAMENTOS"))) -> COMPOSIÇÃO PRÓPRIA COM BASE NA SINAPI-10-2022 | J131: 126.5 | K131: =ROUND(J131*(1+BDI),2) -> 154.77 | M131: COMPOSIÇÃO PRÓPRIA | N131: BDI DE OBRA
A132: =$A$130&"."&(ROW(A132)-ROW($A$130)) -> 1.9.2 | B132: FORNECIMENTO E INSTALAÇÃO DE JUNTA PERIMÉTRICA PARA FORRO DE GESSO ACARTONADO | C132: M | D132: 133.53 | E132: =K132 -> 14.77 | F132: =ROUND(D132*E132,2) -> 1972.24 | H132: 96121 | I132: =IF(M132="COMPOSIÇÃO",LEFT(RIGHT(CAMINHO_DO_BD,19),14),IF(M132="INSUMO","INSUMO " & LEFT(RIGHT(CAMINHO_DO_BD,19),14),IF(M132="COMPOSIÇÃO PRÓPRIA","COMPOSIÇÃO PRÓPRIA COM BASE NA " & LEFT(RIGHT(CAMINHO_DO_BD,19),14),"PREÇO MÉDIO DE ORÇAMENTOS"))) -> SINAPI-10-2022 | J132: 12.07 | K132: =ROUND(J132*(1+BDI),2) -> 14.77 | M132: COMPOSIÇÃO | N132: BDI DE OBRA
A134: 1.10 | B134: PINTURA | F134: =SUBTOTAL(9,F135:F145) -> 18525.05
A136: 1.10.1 | B136: PAREDE | F136: =SUBTOTAL(9,F137:F140) -> 10327.95
A137: =A136&"."&(ROW(A137)-ROW(A136)) -> 1.10.1.1 | B137: APLICAÇÃO E LIXAMENTO DE MASSA LÁTEX ACRÍLICA EM PAREDES, UMA DEMÃO. AF_06/2014- INTERNO E EXTERNO DIRETORIA E SUPERINTENDENCIA | C137: M2 | D137: 118.61 | E137: =K137 -> 14.57 | F137: =ROUND(D137*E137,2) -> 1728.15 | H137: 88495 | I137: =IF(M137="COMPOSIÇÃO",LEFT(RIGHT(CAMINHO_DO_BD,19),14),IF(M137="INSUMO","INSUMO " & LEFT(RIGHT(CAMINHO_DO_BD,19),14),IF(M137="COMPOSIÇÃO PRÓPRIA","COMPOSIÇÃO PRÓPRIA COM BASE NA " & LEFT(RIGHT(CAMINHO_DO_BD,19),14),"PREÇO MÉDIO DE ORÇAMENTOS"))) -> SINAPI-10-2022 | J137: 11.91 | K137: =ROUND(J137*(1+BDI),2) -> 14.57 | M137: COMPOSIÇÃO | N137: BDI DE OBRA
A138: =A137&"."&(ROW(A138)-ROW(A137)) -> 1.10.1.1.1 | B138: APLICAÇÃO DE FUNDO SELADOR ACRÍLICO EM PAREDES, UMA DEMÃO. AF_06/2014 INTERNO E EXTERNO DIRETORIA E SUPERINTENDENCIA | C138: M2 | D138: 299.55 | E138: 2.73 | F138: 817.77 | H138: 88485 | I138: =IF(M138="COMPOSIÇÃO",LEFT(RIGHT(CAMINHO_DO_BD,19),14),IF(M138="INSUMO","INSUMO " & LEFT(RIGHT(CAMINHO_DO_BD,19),14),IF(M138="COMPOSIÇÃO PRÓPRIA","COMPOSIÇÃO PRÓPRIA COM BASE NA " & LEFT(RIGHT(CAMINHO_DO_BD,19),14),"PREÇO MÉDIO DE ORÇAMENTOS"))) -> SINAPI-10-2022 | J138: 2.23 | K138: =ROUND(J138*(1+BDI),2) -> 2.73 | M138: COMPOSIÇÃO | N138: BDI DE OBRA | AF138: atual
A139: 1.10.1.1.1.1 | B139: APLICAÇÃO MANUAL DE PINTURA COM TINTA LÁTEX ACRÍLICA EM PAREDES, DUAS DEMÃOS. AF_06/2014 PINTURA INTERNA E EXTERNA DIRETORIA E SUPERINTENDENCIA - COR A SER DEFINIDA PELA FISCALIZAÇÃO | C139: M2 | D139: 424.32 | E139: =K139 -> 18.34 | F139: =ROUND(D139*E139,2) -> 7782.03 | H139: 88489 | I139: =IF(M139="COMPOSIÇÃO",LEFT(RIGHT(CAMINHO_DO_BD,19),14),IF(M139="INSUMO","INSUMO " & LEFT(RIGHT(CAMINHO_DO_BD,19),14),IF(M139="COMPOSIÇÃO PRÓPRIA","COMPOSIÇÃO PRÓPRIA COM BASE NA " & LEFT(RIGHT(CAMINHO_DO_BD,19),14),"PREÇO MÉDIO DE ORÇAMENTOS"))) -> SINAPI-10-2022 | J139: 14.99 | K139: =ROUND(J139*(1+BDI),2) -> 18.34 | M139: COMPOSIÇÃO | N139: BDI DE OBRA | AD139: 7462.91 | AE139: =F139-AD139 -> 319.12 | AF139: 7782.03
A141: 1.10.2 | B141: TETO | F141: =SUBTOTAL(9,F142:F145) -> 8197.1
A142: =A141&"."&(ROW(A142)-ROW(A141)) -> 1.10.2.1 | B142: APLICAÇÃO E LIXAMENTO DE MASSA LÁTEX EM TETO, UMA DEMÃO. AF_06/2014 | C142: M2 | D142: 166.54 | E142: =K142 -> 25.4 | F142: =ROUND(D142*E142,2) -> 4230.12 | H142: 88494 | I142: =IF(M142="COMPOSIÇÃO",LEFT(RIGHT(CAMINHO_DO_BD,19),14),IF(M142="INSUMO","INSUMO " & LEFT(RIGHT(CAMINHO_DO_BD,19),14),IF(M142="COMPOSIÇÃO PRÓPRIA","COMPOSIÇÃO PRÓPRIA COM BASE NA " & LEFT(RIGHT(CAMINHO_DO_BD,19),14),"PREÇO MÉDIO DE ORÇAMENTOS"))) -> SINAPI-10-2022 | J142: 20.76 | K142: =ROUND(J142*(1+BDI),2) -> 25.4 | M142: COMPOSIÇÃO | N142: BDI DE OBRA
A143: =$A$141&"."&(ROW(A143)-ROW($A$141)) -> 1.10.2.2 | B143: APLICAÇÃO DE FUNDO SELADOR ACRÍLICO EM TETO, UMA DEMÃO. AF_06/2014 | C143: M2 | D143: 166.54 | E143: =K143 -> 3.22 | F143: =ROUND(D143*E143,2) -> 536.26 | H143: 88484 | I143: =IF(M143="COMPOSIÇÃO",LEFT(RIGHT(CAMINHO_DO_BD,19),14),IF(M143="INSUMO","INSUMO " & LEFT(RIGHT(CAMINHO_DO_BD,19),14),IF(M143="COMPOSIÇÃO PRÓPRIA","COMPOSIÇÃO PRÓPRIA COM BASE NA " & LEFT(RIGHT(CAMINHO_DO_BD,19),14),"PREÇO MÉDIO DE ORÇAMENTOS"))) -> SINAPI-10-2022 | J143: 2.63 | K143: =ROUND(J143*(1+BDI),2) -> 3.22 | M143: COMPOSIÇÃO | N143: BDI DE OBRA
A144: =$A$141&"."&(ROW(A144)-ROW($A$141)) -> 1.10.2.3 | B144: APLICAÇÃO MANUAL DE PINTURA COM TINTA LÁTEX ACRÍLICA EM TETO COR BRANCO NEVE, DUAS DEMÃOS. AF_06/2014 | C144: M2 | D144: 166.54 | E144: =K144 -> 20.6 | F144: =ROUND(D144*E144,2) -> 3430.72 | H144: 88488 | I144: =IF(M144="COMPOSIÇÃO",LEFT(RIGHT(CAMINHO_DO_BD,19),14),IF(M144="INSUMO","INSUMO " & LEFT(RIGHT(CAMINHO_DO_BD,19),14),IF(M144="COMPOSIÇÃO PRÓPRIA","COMPOSIÇÃO PRÓPRIA COM BASE NA " & LEFT(RIGHT(CAMINHO_DO_BD,19),14),"PREÇO MÉDIO DE ORÇAMENTOS"))) -> SINAPI-10-2022 | J144: 16.84 | K144: =ROUND(J144*(1+BDI),2) -> 20.6 | M144: COMPOSIÇÃO | N144: BDI DE OBRA
A146: 1.11 | B146: INSTALAÇÃO DE ÁGUA FRIA, ESGOTO E DRENAGEM | F146: =SUBTOTAL(9,F147:F171) -> 2574.1
A148: 1.11.1 | B148: ÁGUA FRIA DO BANHEIRO DA SUPERINTENDENCIA | F148: =SUBTOTAL(9,F149:F155) -> 1444.2
A149: =$A$148&"."&(ROW(A149)-ROW($A$148)) -> 1.11.1.1 | B149: PONTO DE CONSUMO TERMINAL DE ÁGUA FRIA (SUBRAMAL) COM TUBULAÇÃO DE PVC, DN 25 MM, INSTALADO EM RAMAL DE ÁGUA, INCLUSOS RASGO E CHUMBAMENTO EM ALVENARIA. AF_12/2014 DUCHA E TORNEIRA | C149: UN | D149: 2 | E149: =K149 -> 177.73 | F149: =ROUND(D149*E149,2) -> 355.46 | H149: 89957 | I149: =IF(M149="COMPOSIÇÃO",LEFT(RIGHT(CAMINHO_DO_BD,19),14),IF(M149="INSUMO","INSUMO " & LEFT(RIGHT(CAMINHO_DO_BD,19),14),IF(M149="COMPOSIÇÃO PRÓPRIA","COMPOSIÇÃO PRÓPRIA COM BASE NA " & LEFT(RIGHT(CAMINHO_DO_BD,19),14),"PREÇO MÉDIO DE ORÇAMENTOS"))) -> SINAPI-10-2022 | J149: 145.26 | K149: =ROUND(J149*(1+BDI),2) -> 177.73 | M149: COMPOSIÇÃO | N149: BDI DE OBRA
A150: =$A$148&"."&(ROW(A150)-ROW($A$148)) -> 1.11.1.2 | B150: JOELHO 90 GRAUS COM BUCHA DE LATÃO, PVC, SOLDÁVEL, DN 25MM, X 3/4 INSTALADO EM RAMAL OU SUB-RAMAL DE ÁGUA - FORNECIMENTO E INSTALAÇÃO. AF_06/2022 | C150: UN | D150: 2 | E150: 22.95 | F150: 45.9 | H150: 89366 | I150: SINAPI-10-2022 | J150: 18.76 | K150: 22.95 | M150: COMPOSIÇÃO | N150: BDI DE OBRA
A151: 1.11.1.3 | B151: JOELHO 90 GRAUS COM BUCHA DE LATÃO, PVC, SOLDÁVEL, DN 25MM, X 3/4 INSTALADO EM RAMAL OU SUB-RAMAL DE ÁGUA - FORNECIMENTO E INSTALAÇÃO. AF_06/2022 | C151: UN | D151: 2 | E151: =K151 -> 22.95 | F151: =ROUND(D151*E151,2) -> 45.9 | H151: 89366 | I151: SINAPI-10-2022 | J151: 18.76 | K151: 22.95 | M151: COMPOSIÇÃO | N151: BDI DE OBRA
A152: 1.11.1.4 | B152: JOELHO 90 GRAUS, PVC, SOLDÁVEL, DN 50MM, INSTALADO EM PRUMADA DE ÁGUA - FORNECIMENTO E INSTALAÇÃO. AF_06/2022 | C152: UN | D152: 2 | E152: =K152 -> 19.45 | F152: =ROUND(D152*E152,2) -> 38.9 | H152: 89501 | I152: SINAPI-10-2022 | J152: 15.9 | K152: 19.45 | M152: COMPOSIÇÃO | N152: BDI DE OBRA
A153: 1.11.1.5 | B153: TUBO, PVC, SOLDÁVEL, DN 50MM, INSTALADO EM PRUMADA DE ÁGUA - FORNECIMENTO E INSTALAÇÃO. AF_06/2022 | C153: M | D153: 3 | E153: =K153 -> 27.2 | F153: =ROUND(D153*E153,2) -> 81.6 | H153: 89449 | I153: SINAPI-10-2022 | J153: 22.23 | K153: 27.2 | M153: COMPOSIÇÃO | N153: BDI DE OBRA
A154: 1.11.1.6 | B154: VÁLVULA DE DESCARGA METÁLICA, BASE 1 1/2 ", ACABAMENTO METALICO CROMADO MOD. BENEFIT REF. DOCOL OU SIMILAR- FORNECIMENTO E INSTALAÇÃO | C154: UN | D154: 1 | E154: =K154 -> 876.44 | F154: =ROUND(D154*E154,2) -> 876.44 | H154: C_CIV0228 | I154: COMPOSIÇÃO PRÓPRIA COM BASE NA SINAPI-10-2022 | J154: 716.34 | K154: 876.44 | M154: COMPOSIÇÃO PRÓPRIA | N154: BDI DE OBRA
A156: 1.11.2 | B156: ESGOTO DO BANHEIRO DA SUPERINTENDENCIA | F156: =SUBTOTAL(9,F157:F165) -> 673.42
A157: =$A$156&"."&(ROW(A157)-ROW($A$156)) -> 1.11.2.1 | B157: TUBO DE PVC PARA REDE COLETORA DE ESGOTO DE PAREDE MACIÇA, DN 100 MM, JUNTA ELÁSTICA - FORNECIMENTO E ASSENTAMENTO. AF_01/2021 | C157: M | D157: 3 | E157: =K157 -> 58.32 | F157: =ROUND(D157*E157,2) -> 174.96 | H157: 90694 | I157: =IF(M157="COMPOSIÇÃO",LEFT(RIGHT(CAMINHO_DO_BD,19),14),IF(M157="INSUMO","INSUMO " & LEFT(RIGHT(CAMINHO_DO_BD,19),14),IF(M157="COMPOSIÇÃO PRÓPRIA","COMPOSIÇÃO PRÓPRIA COM BASE NA " & LEFT(RIGHT(CAMINHO_DO_BD,19),14),"PREÇO MÉDIO DE ORÇAMENTOS"))) -> SINAPI-10-2022 | J157: 47.67 | K157: =ROUND(J157*(1+BDI),2) -> 58.32 | M157: COMPOSIÇÃO | N157: BDI DE OBRA
A158: 1.11.2.2 | B158: TUBO PVC, SERIE NORMAL, ESGOTO PREDIAL, DN 40 MM, FORNECIDO E INSTALADO EM RAMAL DE DESCARGA OU RAMAL DE ESGOTO SANITÁRIO. AF_08/2022 | C158: M | D158: 3 | E158: =K158 -> 25.78 | F158: =ROUND(D158*E158,2) -> 77.34 | H158: 89711 | I158: SINAPI-10-2022 | J158: 21.07 | K158: 25.78 | M158: COMPOSIÇÃO | N158: BDI DE OBRA
A159: 1.11.2.3 | B159: TUBO PVC, SERIE NORMAL, ESGOTO PREDIAL, DN 50 MM, FORNECIDO E INSTALADO EM RAMAL DE DESCARGA OU RAMAL DE ESGOTO SANITÁRIO. AF_08/2022 | C159: M | D159: 4.74 | E159: =K159 -> 33.98 | F159: =ROUND(D159*E159,2) -> 161.07 | H159: 89712 | I159: SINAPI-10-2022 | J159: 27.77 | K159: 33.98 | M159: COMPOSIÇÃO | N159: BDI DE OBRA
A160: 1.11.2.4 | B160: JUNÇÃO DE REDUÇÃO INVERTIDA, PVC, SÉRIE NORMAL, ESGOTO PREDIAL, DN 100 X 50 MM, JUNTA ELÁSTICA, FORNECIDO E INSTALADO EM RAMAL DE DESCARGA OU RAMAL DE ESGOTO SANITÁRIO. AF_08/2022 | C160: UN | D160: 1 | E160: =K160 -> 59.5 | F160: =ROUND(D160*E160,2) -> 59.5 | H160: 104345 | I160: SINAPI-10-2022 | J160: 48.63 | K160: 59.5 | M160: COMPOSIÇÃO | N160: BDI DE OBRA
A161: 1.11.2.5 | B161: TÊ DE REDUÇÃO, PVC, SOLDÁVEL, DN 50MM X 40MM, INSTALADO EM PRUMADA DE ÁGUA - FORNECIMENTO E INSTALAÇÃO. AF_06/2022 | C161: UN | D161: 1 | E161: =K161 -> 44.41 | F161: =ROUND(D161*E161,2) -> 44.41 | H161: 89626 | I161: SINAPI-10-2022 | J161: 36.3 | K161: 44.41 | M161: COMPOSIÇÃO | N161: BDI DE OBRA
A162: 1.11.2.6 | B162: JOELHO 90 GRAUS, PVC, SOLDÁVEL, DN 40MM, INSTALADO EM RAMAL DE DISTRIBUIÇÃO DE ÁGUA - FORNECIMENTO E INSTALAÇÃO. AF_06/2022 | C162: UN | D162: 3 | E162: =K162 -> 23.34 | F162: =ROUND(D162*E162,2) -> 70.02 | H162: 103980 | I162: SINAPI-10-2022 | J162: 19.08 | K162: 23.34 | M162: COMPOSIÇÃO | N162: BDI DE OBRA
A163: 1.11.2.7 | B163: CAIXA SIFONADA, PVC, DN 100 X 100 X 50 MM, JUNTA ELÁSTICA, FORNECIDA E INSTALADA EM RAMAL DE DESCARGA OU EM RAMAL DE ESGOTO SANITÁRIO. AF_12/2014 | C163: UN | D163: 1 | E163: =K163 -> 61.96 | F163: =ROUND(D163*E163,2) -> 61.96 | H163: 89707 | I163: SINAPI-10-2022 | J163: 50.64 | K163: 61.96 | M163: COMPOSIÇÃO | N163: BDI DE OBRA
A164: 1.11.2.8 | B164: RALO SIFONADO REDONDO, PVC, DN 100 X 40 MM, JUNTA SOLDÁVEL, FORNECIDO E INSTALADO EM RAMAL DE DESCARGA OU EM RAMAL DE ESGOTO SANITÁRIO. AF_08/2022 | C164: UN | D164: 1 | E164: =K164 -> 24.16 | F164: =ROUND(D164*E164,2) -> 24.16 | H164: 104327 | I164: SINAPI-10-2022 | J164: 19.75 | K164: 24.16 | M164: COMPOSIÇÃO | N164: BDI DE OBRA
A166: 1.11.3 | B166: DRENO DA CLIMATIZAÇÃO | F166: =SUBTOTAL(9,F167:F171) -> 456.48
A167: =$A$166&"."&(ROW(A167)-ROW($A$166)) -> 1.11.3.1 | B167: TUBO, PVC, SOLDÁVEL, DN 25MM, INSTALADO EM DRENO DE AR-CONDICIONADO - FORNECIMENTO E INSTALAÇÃO. AF_08/2022 | C167: M | D167: 12 | E167: =K167 -> 21.51 | F167: =ROUND(D167*E167,2) -> 258.12 | H167: 89865 | I167: =IF(M167="COMPOSIÇÃO",LEFT(RIGHT(CAMINHO_DO_BD,19),14),IF(M167="INSUMO","INSUMO " & LEFT(RIGHT(CAMINHO_DO_BD,19),14),IF(M167="COMPOSIÇÃO PRÓPRIA","COMPOSIÇÃO PRÓPRIA COM BASE NA " & LEFT(RIGHT(CAMINHO_DO_BD,19),14),"PREÇO MÉDIO DE ORÇAMENTOS"))) -> SINAPI-10-2022 | J167: 17.58 | K167: =ROUND(J167*(1+BDI),2) -> 21.51 | M167: COMPOSIÇÃO | N167: BDI DE OBRA
A168: =$A$166&"."&(ROW(A168)-ROW($A$166)) -> 1.11.3.2 | B168: JOELHO 90 GRAUS, PVC, SOLDÁVEL, DN 25MM, INSTALADO EM DRENO DE AR-CONDICIONADO - FORNECIMENTO E INSTALAÇÃO. AF_08/2022 | C168: UN | D168: 6 | E168: 8.81 | F168: 52.86 | H168: 89866 | I168: =IF(M168="COMPOSIÇÃO",LEFT(RIGHT(CAMINHO_DO_BD,19),14),IF(M168="INSUMO","INSUMO " & LEFT(RIGHT(CAMINHO_DO_BD,19),14),IF(M168="COMPOSIÇÃO PRÓPRIA","COMPOSIÇÃO PRÓPRIA COM BASE NA " & LEFT(RIGHT(CAMINHO_DO_BD,19),14),"PREÇO MÉDIO DE ORÇAMENTOS"))) -> SINAPI-10-2022 | J168: 7.2 | K168: =ROUND(J168*(1+BDI),2) -> 8.81 | M168: COMPOSIÇÃO | N168: BDI DE OBRA
A169: 1.11.3.3 | B169: JOELHO 45 GRAUS, PVC, SOLDÁVEL, DN 25MM, INSTALADO EM DRENO DE AR-CONDICIONADO - FORNECIMENTO E INSTALAÇÃO. AF_08/2022 | C169: UN | D169: 6 | E169: 10.13 | F169: 60.78 | H169: 89867 | I169: =IF(M169="COMPOSIÇÃO",LEFT(RIGHT(CAMINHO_DO_BD,19),14),IF(M169="INSUMO","INSUMO " & LEFT(RIGHT(CAMINHO_DO_BD,19),14),IF(M169="COMPOSIÇÃO PRÓPRIA","COMPOSIÇÃO PRÓPRIA COM BASE NA " & LEFT(RIGHT(CAMINHO_DO_BD,19),14),"PREÇO MÉDIO DE ORÇAMENTOS"))) -> SINAPI-10-2022 | J169: 8.28 | K169: =ROUND(J169*(1+BDI),2) -> 10.13 | M169: COMPOSIÇÃO | N169: BDI DE OBRA
A170: 1.11.3.4 | B170: TUBO DE ESPUMA DE POLIETILENO EXPANDIDO FLEXIVEL PARA ISOLAMENTO TERMICO DE TUBULACAO DE AR CONDICIONADO, AGUA QUENTE, DN 1 1/2", E= 10 MM | C170: M | D170: 12 | E170: 7.06 | F170: 84.72 | H170: 39707 | I170: =IF(M170="COMPOSIÇÃO",LEFT(RIGHT(CAMINHO_DO_BD,19),14),IF(M170="INSUMO","INSUMO " & LEFT(RIGHT(CAMINHO_DO_BD,19),14),IF(M170="COMPOSIÇÃO PRÓPRIA","COMPOSIÇÃO PRÓPRIA COM BASE NA " & LEFT(RIGHT(CAMINHO_DO_BD,19),14),"PREÇO MÉDIO DE ORÇAMENTOS"))) -> INSUMO SINAPI-10-2022 | J170: 5.77 | K170: =ROUND(J170*(1+BDI),2) -> 7.06 | M170: INSUMO | N170: BDI DE OBRA
A172: 1.12 | B172: INSTALAÇÕES ELÉTRICA DE BAIXA TENSÃO | F172: =SUBTOTAL(9,F173:F294) -> 144094.68
A174: 1.2.1 | B174: CABOS | F174: =SUBTOTAL(9,F175:F185) -> 23354.69
A175: =$A$174&"."&(ROW(A175)-ROW($A$174)) -> 1.2.1.1 | B175: CABO DE COBRE FLEXÍVEL ISOLADO, 2,5 MM², ANTI-CHAMA 450/750 V, PARA CIRCUITOS TERMINAIS - FORNECIMENTO E INSTALAÇÃO. AF_12/2015 - COR PRETA | C175: M | D175: 120 | E175: =K175 -> 4.86 | F175: =ROUND(D175*E175,2) -> 583.2 | H175: 91926 | I175: =IF(M175="COMPOSIÇÃO",LEFT(RIGHT(CAMINHO_DO_BD,19),14),IF(M175="INSUMO","INSUMO " & LEFT(RIGHT(CAMINHO_DO_BD,19),14),IF(M175="COMPOSIÇÃO PRÓPRIA","COMPOSIÇÃO PRÓPRIA COM BASE NA " & LEFT(RIGHT(CAMINHO_DO_BD,19),14),"PREÇO MÉDIO DE ORÇAMENTOS"))) -> SINAPI-10-2022 | J175: 3.97 | K175: =ROUND(J175*(1+BDI),2) -> 4.86 | M175: COMPOSIÇÃO | N175: BDI DE OBRA
A176: =$A$174&"."&(ROW(A176)-ROW($A$174)) -> 1.2.1.2 | B176: CABO DE COBRE FLEXÍVEL ISOLADO, 2,5 MM², ANTI-CHAMA 450/750 V, PARA CIRCUITOS TERMINAIS - FORNECIMENTO E INSTALAÇÃO. AF_12/2015 - COR AZUL | C176: M | D176: 349 | E176: 4.86 | F176: 1696.14 | H176: 91926 | I176: SINAPI-10-2022 | J176: 3.97 | K176: 4.86 | M176: COMPOSIÇÃO | N176: BDI DE OBRA
A177: 1.2.1.3 | B177: CABO DE COBRE FLEXÍVEL ISOLADO, 2,5 MM², ANTI-CHAMA 450/750 V, PARA CIRCUITOS TERMINAIS - FORNECIMENTO E INSTALAÇÃO. AF_12/2015 - COR VERDE | C177: M | D177: 327 | E177: 4.86 | F177: 1589.22 | H177: 91926 | I177: SINAPI-10-2022 | J177: 3.97 | K177: 4.86 | M177: COMPOSIÇÃO | N177: BDI DE OBRA
A178: 1.2.1.4 | B178: CABO DE COBRE FLEXÍVEL ISOLADO, 2,5 MM², ANTI-CHAMA 450/750 V, PARA CIRCUITOS TERMINAIS - FORNECIMENTO E INSTALAÇÃO. AF_12/2015 - COR AMARELO | C178: M | D178: 523 | E178: 4.86 | F178: 2541.78 | H178: 91926 | I178: SINAPI-10-2022 | J178: 3.97 | K178: 4.86 | M178: COMPOSIÇÃO | N178: BDI DE OBRA
A179: 1.2.1.5 | B179: CABO DE COBRE FLEXÍVEL ISOLADO, 4 MM², ANTI-CHAMA 450/750 V, PARA CIRCUITOS TERMINAIS - FORNECIMENTO E INSTALAÇÃO. AF_12/2015 - COR PRETA | C179: M | D179: 702 | E179: 7.49 | F179: 5257.98 | H179: 91928 | I179: SINAPI-10-2022 | J179: 6.12 | K179: 7.49 | M179: COMPOSIÇÃO | N179: BDI DE OBRA
A180: 1.2.1.6 | B180: CABO DE COBRE FLEXÍVEL ISOLADO, 4 MM², ANTI-CHAMA 450/750 V, PARA CIRCUITOS TERMINAIS - FORNECIMENTO E INSTALAÇÃO. AF_12/2015 - COR AZUL | C180: M | D180: 529 | E180: 7.49 | F180: 3962.21 | H180: 91928 | I180: SINAPI-10-2022 | J180: 6.12 | K180: 7.49 | M180: COMPOSIÇÃO | N180: BDI DE OBRA
A181: 1.2.1.7 | B181: CABO DE COBRE FLEXÍVEL ISOLADO, 4 MM², ANTI-CHAMA 450/750 V, PARA CIRCUITOS TERMINAIS - FORNECIMENTO E INSTALAÇÃO. AF_12/2015 - COR VERDE | C181: M | D181: 616 | E181: 7.49 | F181: 4613.84 | H181: 91928 | I181: SINAPI-10-2022 | J181: 6.12 | K181: 7.49 | M181: COMPOSIÇÃO | N181: BDI DE OBRA
A182: 1.2.1.8 | B182: CABO DE COBRE FLEXÍVEL ISOLADO, 6 MM², ANTI-CHAMA 450/750 V, PARA CIRCUITOS TERMINAIS - FORNECIMENTO E INSTALAÇÃO. AF_12/2015 - COR PRETA | C182: M | D182: 152 | E182: 10.44 | F182: 1586.88 | H182: 91930 | I182: SINAPI-10-2022 | J182: 8.53 | K182: 10.44 | M182: COMPOSIÇÃO | N182: BDI DE OBRA
A183: 1.2.1.9 | B183: CABO DE COBRE FLEXÍVEL ISOLADO, 6 MM², ANTI-CHAMA 450/750 V, PARA CIRCUITOS TERMINAIS - FORNECIMENTO E INSTALAÇÃO. AF_12/2015 - COR VERDE | C183: M | D183: 76 | E183: 10.44 | F183: 793.44 | H183: 91930 | I183: SINAPI-10-2022 | J183: 8.53 | K183: 10.44 | M183: COMPOSIÇÃO | N183: BDI DE OBRA
A184: 1.2.1.10 | B184: REMOÇÃO DE CABOS ELÉTRICOS, DE FORMA MANUAL, SEM REAPROVEITAMENTO. AF_12/2017 | C184: M | D184: 1000 | E184: 0.73 | F184: 730 | H184: 97661 | I184: =IF(M184="COMPOSIÇÃO",LEFT(RIGHT(CAMINHO_DO_BD,19),14),IF(M184="INSUMO","INSUMO " & LEFT(RIGHT(CAMINHO_DO_BD,19),14),IF(M184="COMPOSIÇÃO PRÓPRIA","COMPOSIÇÃO PRÓPRIA COM BASE NA " & LEFT(RIGHT(CAMINHO_DO_BD,19),14),"PREÇO MÉDIO DE ORÇAMENTOS"))) -> SINAPI-10-2022 | J184: 0.6 | K184: =ROUND(J184*(1+BDI),2) -> 0.73 | M184: COMPOSIÇÃO | N184: BDI DE OBRA
A186: 1.2.2 | B186: DISPOSITIVO ELÉTRICO EMBUTIDO / SOBREPOR | F186: =SUBTOTAL(9,F187:F222) -> 23809.56
A187: =$A$186&"."&(ROW(A187)-ROW($A$186)) -> 1.2.2.1 | B187: INTERRUPTOR SIMPLES (1 MÓDULO), 10A/250V, INCLUINDO SUPORTE E PLACA - FORNECIMENTO E INSTALAÇÃO. AF_12/2015 - COR BRANCA | C187: UN | D187: 2 | E187: =K187 -> 29.29 | F187: =ROUND(D187*E187,2) -> 58.58 | H187: 91953 | I187: =IF(M187="COMPOSIÇÃO",LEFT(RIGHT(CAMINHO_DO_BD,19),14),IF(M187="INSUMO","INSUMO " & LEFT(RIGHT(CAMINHO_DO_BD,19),14),IF(M187="COMPOSIÇÃO PRÓPRIA","COMPOSIÇÃO PRÓPRIA COM BASE NA " & LEFT(RIGHT(CAMINHO_DO_BD,19),14),"PREÇO MÉDIO DE ORÇAMENTOS"))) -> SINAPI-10-2022 | J187: 23.94 | K187: =ROUND(J187*(1+BDI),2) -> 29.29 | M187: COMPOSIÇÃO | N187: BDI DE OBRA
A188: =$A$186&"."&(ROW(A188)-ROW($A$186)) -> 1.2.2.2 | B188: INTERRUPTOR SIMPLES (2 MÓDULOS), 10A/250V, INCLUINDO SUPORTE E PLACA - FORNECIMENTO E INSTALAÇÃO. AF_12/2015 - COR BRANCA | C188: UN | D188: 2 | E188: 46.38 | F188: 92.76 | H188: 91959 | I188: SINAPI-10-2022 | J188: 37.91 | K188: 46.38 | M188: COMPOSIÇÃO | N188: BDI DE OBRA
A189: 1.2.2.3 | B189: INTERRUPTOR SIMPLES (3 MÓDULOS), 10A/250V, INCLUINDO SUPORTE E PLACA - FORNECIMENTO E INSTALAÇÃO. AF_12/2015 - COR BRANCA | C189: UN | D189: 2 | E189: 63.45 | F189: 126.9 | H189: 91967 | I189: SINAPI-10-2022 | J189: 51.86 | K189: 63.45 | M189: COMPOSIÇÃO | N189: BDI DE OBRA
A190: 1.2.2.4 | B190: TOMADA ALTA DE EMBUTIR (1 MÓDULO), 2P+T 10 A, INCLUINDO SUPORTE E PLACA - FORNECIMENTO E INSTALAÇÃO. AF_12/2015 - COR BRANCA | C190: UN | D190: 13 | E190: 45.78 | F190: 595.14 | H190: 91992 | I190: SINAPI-10-2022 | J190: 37.42 | K190: 45.78 | M190: COMPOSIÇÃO | N190: BDI DE OBRA
A191: 1.2.2.5 | B191: TOMADA BAIXA DE EMBUTIR (1 MÓDULO), 2P+T 10 A, INCLUINDO SUPORTE E PLACA - FORNECIMENTO E INSTALAÇÃO. AF_12/2015 - COR BRANCA | C191: UN | D191: 11 | E191: 30.93 | F191: 340.23 | H191: 92000 | I191: SINAPI-10-2022 | J191: 25.28 | K191: 30.93 | M191: COMPOSIÇÃO | N191: BDI DE OBRA
A192: 1.2.2.6 | B192: TOMADA MÉDIA DE EMBUTIR (1 MÓDULO), 2P+T 10 A, INCLUINDO SUPORTE E PLACA - FORNECIMENTO E INSTALAÇÃO. AF_12/2015 - COR BRANCA | C192: UN | D192: 2 | E192: 35.08 | F192: 70.16 | H192: 91996 | I192: SINAPI-10-2022 | J192: 28.67 | K192: 35.08 | M192: COMPOSIÇÃO | N192: BDI DE OBRA
A193: 1.2.2.7 | B193: TOMADA MÉDIA DE EMBUTIR (2 MÓDULOS), 2P+T 10 A, INCLUINDO SUPORTE E PLACA - FORNECIMENTO E INSTALAÇÃO. AF_12/2015 - COR BRANCA | C193: UN | D193: 1 | E193: 57.9 | F193: 57.9 | H193: 92004 | I193: SINAPI-10-2022 | J193: 47.32 | K193: 57.9 | M193: COMPOSIÇÃO | N193: BDI DE OBRA
A194: 1.2.2.8 | B194: TOMADA BAIXA DE EMBUTIR (2 MÓDULOS), 2P+T 10 A, INCLUINDO SUPORTE E PLACA - FORNECIMENTO E INSTALAÇÃO. AF_12/2015 - COR BRANCA | C194: UN | D194: 10 | E194: 49.58 | F194: 495.8 | H194: 92008 | I194: SINAPI-10-2022 | J194: 40.52 | K194: 49.58 | M194: COMPOSIÇÃO | N194: BDI DE OBRA
A195: 1.2.2.9 | B195: TOMADA MÉDIA DE EMBUTIR (2 MÓDULOS), 2P+T 20 A, INCLUINDO SUPORTE E PLACA - FORNECIMENTO E INSTALAÇÃO. AF_12/2015 - COR BRANCA | C195: UN | D195: 3 | E195: 62.77 | F195: 188.31 | H195: 92005 | I195: SINAPI-10-2022 | J195: 51.3 | K195: 62.77 | M195: COMPOSIÇÃO | N195: BDI DE OBRA
A196: 1.2.2.10 | B196: INTERRUPTOR SMART TOUCH, WI-FI, 2 MÓDULOS, COMPATIVEL COM SISTEMA DE AUTOMAÇÃO, BRANCO INCLUINDO ACESSÓRIOS DE INSTALAÇÃO. FORNECIMENTO E INSTALAÇÃO | C196: UN | D196: 1 | E196: 175.3 | F196: 175.3 | H196: C_ELE0304 | I196: =IF(M196="COMPOSIÇÃO",LEFT(RIGHT(CAMINHO_DO_BD,19),14),IF(M196="INSUMO","INSUMO " & LEFT(RIGHT(CAMINHO_DO_BD,19),14),IF(M196="COMPOSIÇÃO PRÓPRIA","COMPOSIÇÃO PRÓPRIA COM BASE NA " & LEFT(RIGHT(CAMINHO_DO_BD,19),14),"PREÇO MÉDIO DE ORÇAMENTOS"))) -> COMPOSIÇÃO PRÓPRIA COM BASE NA SINAPI-10-2022 | J196: 143.28 | K196: =ROUND(J196*(1+BDI),2) -> 175.3 | M196: COMPOSIÇÃO PRÓPRIA | N196: BDI DE OBRA
A197: 1.2.2.11 | B197: INTERRUPTOR SMART TOUCH, WI-FI, 3 MÓDULOS, COMPATIVEL COM SISTEMA DE AUTOMAÇÃO, BRANCO INCLUINDO ACESSÓRIOS DE INSTALAÇÃO. FORNECIMENTO E INSTALAÇÃO | C197: UN | D197: 1 | E197: 175.3 | F197: 175.3 | H197: C_ELE0304 | I197: COMPOSIÇÃO PRÓPRIA COM BASE NA SINAPI-10-2022 | J197: 143.28 | K197: 175.3 | M197: COMPOSIÇÃO PRÓPRIA | N197: BDI DE OBRA
A198: 1.2.2.12 | B198: INTERRUPTOR SMART TOUCH, WI-FI, 4 MÓDULOS, COMPATIVEL COM SISTEMA DE AUTOMAÇÃO, BRANCO INCLUINDO ACESSÓRIOS DE INSTALAÇÃO. FORNECIMENTO E INSTALAÇÃO | C198: UN | D198: 4 | E198: 256.47 | F198: 1025.88 | H198: C_ELE0305 | I198: COMPOSIÇÃO PRÓPRIA COM BASE NA SINAPI-10-2022 | J198: 209.62 | K198: 256.47 | M198: COMPOSIÇÃO PRÓPRIA | N198: BDI DE OBRA
A199: 1.2.2.13 | B199: INTERRUPTOR SMART TOUCH, WI-FI, 6 MÓDULOS, COMPATIVEL COM SISTEMA DE AUTOMAÇÃO, BRANCO INCLUINDO ACESSÓRIOS DE INSTALAÇÃO. FORNECIMENTO E INSTALAÇÃO | C199: UN | D199: 2 | E199: 564.25 | F199: 1128.5 | H199: C_ELE0306 | I199: COMPOSIÇÃO PRÓPRIA COM BASE NA SINAPI-10-2022 | J199: 461.18 | K199: 564.25 | M199: COMPOSIÇÃO PRÓPRIA | N199: BDI DE OBRA
A200: 1.2.2.14 | B200: CAIXA DE PASSAGEM ELETRICA DE PAREDE, DE SOBREPOR, EM TERMOPLASTICO / PVC, COM TAMPA APARAFUSADA, DIMENSOES, 150 X 150 X *100* MM FORNECIMENTO E INSTALAÇÃO | C200: UN | D200: 71 | E200: 78.74 | F200: 5590.54 | H200: C_ELE0307 | I200: COMPOSIÇÃO PRÓPRIA COM BASE NA SINAPI-10-2022 | J200: 64.36 | K200: 78.74 | M200: COMPOSIÇÃO PRÓPRIA | N200: BDI DE OBRA
A201: 1.2.2.15 | B201: CAIXA DE PASSAGEM ELETRICA DE PAREDE, DE SOBREPOR, EM PVC, COM TAMPA APARAFUSADA, DIMENSOES 300 X 300 X *100* MM FORNECIMENTO E INSTALAÇÃO | C201: UN | D201: 17 | E201: 198.62 | F201: 3376.54 | H201: C_ELE0308 | I201: COMPOSIÇÃO PRÓPRIA COM BASE NA SINAPI-10-2022 | J201: 162.34 | K201: 198.62 | M201: COMPOSIÇÃO PRÓPRIA | N201: BDI DE OBRA
A202: 1.2.2.16 | B202: CAIXA DE PASSAGEM ELETRICA DE PAREDE, DE EMBUTIR, EM PVC, COM TAMPA APARAFUSADA, DIMENSOES 200 X 200 X *90* MM FORNECIMENTO E INSTALAÇÃO | C202: UN | D202: 21 | E202: 108.46 | F202: 2277.66 | H202: C_ELE0309 | I202: COMPOSIÇÃO PRÓPRIA COM BASE NA SINAPI-10-2022 | J202: 88.65 | K202: 108.46 | M202: COMPOSIÇÃO PRÓPRIA | N202: BDI DE OBRA
A203: 1.2.2.17 | B203: CAIXA RETANGULAR 4" X 2" BAIXA (0,30 M DO PISO), PVC, INSTALADA EM PAREDE - FORNECIMENTO E INSTALAÇÃO. AF_12/2015 | C203: UN | D203: 20 | E203: 12.09 | F203: 241.8 | H203: 91941 | I203: SINAPI-10-2022 | J203: 9.88 | K203: =ROUND(J203*(1+BDI),2) -> 12.09 | M203: COMPOSIÇÃO | N203: BDI DE OBRA
A204: 1.2.2.18 | B204: CAIXA RETANGULAR 4" X 2" MÉDIA (1,30 M DO PISO), PVC, INSTALADA EM PAREDE - FORNECIMENTO E INSTALAÇÃO. AF_12/2015 | C204: UN | D204: 4 | E204: 17.89 | F204: 71.56 | H204: 91940 | I204: SINAPI-10-2022 | J204: 14.62 | K204: =ROUND(J204*(1+BDI),2) -> 17.89 | M204: COMPOSIÇÃO | N204: BDI DE OBRA
A205: 1.2.2.19 | B205: CAIXA RETANGULAR 4" X 2" ALTA (2,00 M DO PISO), PVC, INSTALADA EM PAREDE - FORNECIMENTO E INSTALAÇÃO. AF_12/2015 | C205: UN | D205: 4 | E205: 33.38 | F205: 133.52 | H205: 91939 | I205: SINAPI-10-2022 | J205: 27.28 | K205: =ROUND(J205*(1+BDI),2) -> 33.38 | M205: COMPOSIÇÃO | N205: BDI DE OBRA
A206: 1.2.2.20 | B206: CAIXA RETANGULAR, EM PVC, DE 4" X 2", PARA ELETRODUTO FLEXIVEL CORRUGADO (ALTA), INSTALADA EM GESSO - FORNECIMENTO E INSTALAÇÃO | C206: UN | D206: 1 | E206: 32.63 | F206: 32.63 | H206: C_ELE0310 | I206: COMPOSIÇÃO PRÓPRIA COM BASE NA SINAPI-10-2022 | J206: 26.67 | K206: =ROUND(J206*(1+BDI),2) -> 32.63 | M206: COMPOSIÇÃO PRÓPRIA | N206: BDI DE OBRA
A207: 1.2.2.21 | B207: CAIXA RETANGULAR, EM PVC, DE 4" X 2", PARA ELETRODUTO FLEXIVEL CORRUGADO (BAIXA), INSTALADA EM GESSO - FORNECIMENTO E INSTALAÇÃO | C207: UN | D207: 10 | E207: 11.56 | F207: 115.6 | H207: C_ELE0312 | I207: COMPOSIÇÃO PRÓPRIA COM BASE NA SINAPI-10-2022 | J207: 9.45 | K207: 11.56 | M207: COMPOSIÇÃO PRÓPRIA | N207: BDI DE OBRA
A208: 1.2.2.22 | B208: CAIXA RETANGULAR, EM PVC, DE 4" X 2", PARA ELETRODUTO FLEXIVEL CORRUGADO (MÉDIA), INSTALADA EM GESSO - FORNECIMENTO E INSTALAÇÃO | C208: UN | D208: 4 | E208: 17.26 | F208: 69.04 | H208: C_ELE0311 | I208: COMPOSIÇÃO PRÓPRIA COM BASE NA SINAPI-10-2022 | J208: 14.11 | K208: 17.26 | M208: COMPOSIÇÃO PRÓPRIA | N208: BDI DE OBRA
A209: 1.2.2.23 | B209: CAIXA RETANGULAR, EM PVC, DE 4" X 2", COM DUPLA PROFUNDIDADE, PARA ELETRODUTO FLEXIVEL CORRUGADO (MÉDIA), INSTALADA EM GESSO - FORNECIMENTO E INSTALAÇÃO | C209: UN | D209: 2 | E209: 20.29 | F209: 40.58 | H209: C_ELE0313 | I209: COMPOSIÇÃO PRÓPRIA COM BASE NA SINAPI-10-2022 | J209: 16.58 | K209: 20.29 | M209: COMPOSIÇÃO PRÓPRIA | N209: BDI DE OBRA
A210: 1.2.2.24 | B210: CAIXA RETANGULAR, EM PVC, DE 4" X 4", COM DUPLA PROFUNDIDADE, PARA ELETRODUTO FLEXIVEL CORRUGADO (MÉDIA), INSTALADA EM GESSO - FORNECIMENTO E INSTALAÇÃO | C210: UN | D210: 6 | E210: 27.98 | F210: 167.88 | H210: C_ELE0314 | I210: COMPOSIÇÃO PRÓPRIA COM BASE NA SINAPI-10-2022 | J210: 22.87 | K210: 27.98 | M210: COMPOSIÇÃO PRÓPRIA | N210: BDI DE OBRA
A211: 1.2.2.25 | B211: CAIXA TOMADA AÇO EMBUTIR P/MESA, COM FECHAMENTO, 3 TOMADAS 2P+T, 4 PORTAS RJ45, PRETA INCLUINDO ACESSÓRIOS DE INSTALAÇÃO. FORNECIMENTO E INSTALAÇÃO | C211: UN | D211: 1 | E211: 266.2 | F211: 266.2 | H211: C_ELE0298 | I211: COMPOSIÇÃO PRÓPRIA COM BASE NA SINAPI-10-2022 | J211: 217.57 | K211: 266.2 | M211: COMPOSIÇÃO PRÓPRIA | N211: BDI DE OBRA
A212: 1.2.2.26 | B212: CAIXA TOMADA AÇO EMBUTIR P/MESA, COM FECHAMENTO, 3 TOMADAS 2P+T, 4 PORTAS RJ45, 1 ENTRADA HDMI (FÊMEA), PRETA INCLUINDO ACESSÓRIOS DE INSTALAÇÃO. FORNECIMENTO E INSTALAÇÃO | C212: UN | D212: 1 | E212: 524.26 | F212: 524.26 | H212: C_ELE0299 | I212: COMPOSIÇÃO PRÓPRIA COM BASE NA SINAPI-10-2022 | J212: 428.49 | K212: 524.26 | M212: COMPOSIÇÃO PRÓPRIA | N212: BDI DE OBRA
A213: 1.2.2.27 | B213: CAIXA TOMADA AÇO EMBUTIR P/MESA, COM FECHAMENTO, 5 TOMADAS 2P+T, 4 PORTAS RJ45, 1 ENTRADA USB (CARGA), PRETA INCLUINDO ACESSÓRIOS DE INSTALAÇÃO. FORNECIMENTO E INSTALAÇÃO | C213: UN | D213: 1 | E213: 627.03 | F213: 627.03 | H213: C_ELE0300 | I213: COMPOSIÇÃO PRÓPRIA COM BASE NA SINAPI-10-2022 | J213: 512.49 | K213: 627.03 | M213: COMPOSIÇÃO PRÓPRIA | N213: BDI DE OBRA
A214: 1.2.2.28 | B214: CAIXA TOMADA AÇO EMBUTIR P/MESA, COM FECHAMENTO, 5 TOMADAS 2P+T, 4 PORTAS RJ45, 1 ENTRADA USB (CARGA), 1 ENTRADA HDMI (FÊMEA), PRETA INCLUINDO ACESSÓRIOS DE INSTALAÇÃO. FORNECIMENTO E INSTALAÇÃO | C214: UN | D214: 1 | E214: 664.29 | F214: 664.29 | H214: C_ELE0301 | I214: COMPOSIÇÃO PRÓPRIA COM BASE NA SINAPI-10-2022 | J214: 542.94 | K214: 664.29 | M214: COMPOSIÇÃO PRÓPRIA | N214: BDI DE OBRA
A215: 1.2.2.29 | B215: CAIXA TOMADA AÇO EMBUTIR P/MESA, COM FECHAMENTO, 2 TOMADAS 2P+T, 2 PORTAS RJ45, PRETA INCLUINDO ACESSÓRIOS DE INSTALAÇÃO. FORNECIMENTO E INSTALAÇÃO | C215: UN | D215: 4 | E215: 404.13 | F215: 1616.52 | H215: C_ELE0302 | I215: COMPOSIÇÃO PRÓPRIA COM BASE NA SINAPI-10-2022 | J215: 330.31 | K215: 404.13 | M215: COMPOSIÇÃO PRÓPRIA | N215: BDI DE OBRA
A216: 1.2.2.30 | B216: CAIXA TOMADA AÇO EMBUTIR P/MESA, COM FECHAMENTO, 2 TOMADAS 2P+T, 2 PORTAS RJ45, 1 ENTRADA USB (CARGA), 1 ENTRADA HDMI (FÊMEA), PRETA INCLUINDO ACESSÓRIOS DE INSTALAÇÃO. FORNECIMENTO E INSTALAÇÃO | C216: UN | D216: 2 | E216: 462.59 | F216: 925.18 | H216: C_ELE0303 | I216: COMPOSIÇÃO PRÓPRIA COM BASE NA SINAPI-10-2022 | J216: 378.09 | K216: 462.59 | M216: COMPOSIÇÃO PRÓPRIA | N216: BDI DE OBRA
A217: 1.2.2.31 | B217: QUADRO DE DISTRIBUIÇÃO DE EMBUTIR, EM CHAPA PINTADA, COM BARRAMENTO TRIFÁSICO DE 225A, BARRAMENTO DE NEUTRO E TERRA, COM ESPAÇO PARA DISJUNTOR GERAL E DISPOSITIVOS DE PROTEÇÃO, TIPO DIN, COM CAPACIDADE PARA 42 DISJUNTORES. FORNECIMENTO E INSTALAÇÃO | C217: UN | D217: 1 | E217: 1386.74 | F217: 1386.74 | H217: C_ELE0320 | I217: =IF(M217="COMPOSIÇÃO",LEFT(RIGHT(CAMINHO_DO_BD,19),14),IF(M217="INSUMO","INSUMO " & LEFT(RIGHT(CAMINHO_DO_BD,19),14),IF(M217="COMPOSIÇÃO PRÓPRIA","COMPOSIÇÃO PRÓPRIA COM BASE NA " & LEFT(RIGHT(CAMINHO_DO_BD,19),14),"PREÇO MÉDIO DE ORÇAMENTOS"))) -> COMPOSIÇÃO PRÓPRIA COM BASE NA SINAPI-10-2022 | J217: 1133.42 | K217: =ROUND(J217*(1+BDI),2) -> 1386.74 | M217: COMPOSIÇÃO PRÓPRIA | N217: BDI DE OBRA
A218: 1.2.2.32 | B218: TOMADA 2P+T 10A, 250V (APENAS MODULO) | C218: UN | D218: 27 | E218: 8.75 | F218: 236.25 | H218: 38101 | I218: =IF(M218="COMPOSIÇÃO",LEFT(RIGHT(CAMINHO_DO_BD,19),14),IF(M218="INSUMO","INSUMO " & LEFT(RIGHT(CAMINHO_DO_BD,19),14),IF(M218="COMPOSIÇÃO PRÓPRIA","COMPOSIÇÃO PRÓPRIA COM BASE NA " & LEFT(RIGHT(CAMINHO_DO_BD,19),14),"PREÇO MÉDIO DE ORÇAMENTOS"))) -> INSUMO SINAPI-10-2022 | J218: 7.15 | K218: =ROUND(J218*(1+BDI),2) -> 8.75 | M218: INSUMO | N218: BDI DE OBRA
A219: 1.2.2.33 | B219: EXAUSTOR PARA BANHEIRO, 280 M³/H, 187X187X109MM, 127V, BRANCO. FORNECIMENTO E INSTALAÇÃO | C219: UN | D219: 2 | E219: 414.42 | F219: 828.84 | H219: C_ELE0321 | I219: =IF(M219="COMPOSIÇÃO",LEFT(RIGHT(CAMINHO_DO_BD,19),14),IF(M219="INSUMO","INSUMO " & LEFT(RIGHT(CAMINHO_DO_BD,19),14),IF(M219="COMPOSIÇÃO PRÓPRIA","COMPOSIÇÃO PRÓPRIA COM BASE NA " & LEFT(RIGHT(CAMINHO_DO_BD,19),14),"PREÇO MÉDIO DE ORÇAMENTOS"))) -> COMPOSIÇÃO PRÓPRIA COM BASE NA SINAPI-10-2022 | J219: 338.72 | K219: =ROUND(J219*(1+BDI),2) -> 414.42 | M219: COMPOSIÇÃO PRÓPRIA | N219: BDI DE OBRA
A220: 1.2.2.34 | B220: REMOÇÃO DE INTERRUPTORES/TOMADAS ELÉTRICAS, DE FORMA MANUAL, SEM REAPROVEITAMENTO. AF_12/2017 | C220: UN | D220: 40 | E220: 0.73 | F220: 29.2 | H220: 97660 | I220: =IF(M220="COMPOSIÇÃO",LEFT(RIGHT(CAMINHO_DO_BD,19),14),IF(M220="INSUMO","INSUMO " & LEFT(RIGHT(CAMINHO_DO_BD,19),14),IF(M220="COMPOSIÇÃO PRÓPRIA","COMPOSIÇÃO PRÓPRIA COM BASE NA " & LEFT(RIGHT(CAMINHO_DO_BD,19),14),"PREÇO MÉDIO DE ORÇAMENTOS"))) -> SINAPI-10-2022 | J220: 0.6 | K220: =ROUND(J220*(1+BDI),2) -> 0.73 | M220: COMPOSIÇÃO | N220: BDI DE OBRA
A221: 1.2.2.35 | B221: REMOÇÃO DE EXAUSTOR DE BANHEIRO CIRCULAR | C221: UN | D221: 1 | E221: =K221 -> 56.94 | F221: =ROUND(D221*E221,2) -> 56.94 | H221: C_ELE0344 | I221: =IF(M221="COMPOSIÇÃO",LEFT(RIGHT(CAMINHO_DO_BD,19),14),IF(M221="INSUMO","INSUMO " & LEFT(RIGHT(CAMINHO_DO_BD,19),14),IF(M221="COMPOSIÇÃO PRÓPRIA","COMPOSIÇÃO PRÓPRIA COM BASE NA " & LEFT(RIGHT(CAMINHO_DO_BD,19),14),"PREÇO MÉDIO DE ORÇAMENTOS"))) -> COMPOSIÇÃO PRÓPRIA COM BASE NA SINAPI-10-2022 | J221: 46.54 | K221: =ROUND(J221*(1+BDI),2) -> 56.94 | M221: COMPOSIÇÃO PRÓPRIA | N221: BDI DE OBRA
A223: 1.2.3 | B223: DISPOSITIVO DE PROTEÇÃO | F223: =SUBTOTAL(9,F224:F231) -> 1740.71
A224: =$A$223&"."&(ROW(A224)-ROW($A$223)) -> 1.2.3.1 | B224: DISJUNTOR MONOPOLAR TIPO DIN, CORRENTE NOMINAL DE 10A - FORNECIMENTO E INSTALAÇÃO. AF_10/2020 | C224: UN | D224: 15 | E224: =K224 -> 15.43 | F224: =ROUND(D224*E224,2) -> 231.45 | H224: 93653 | I224: =IF(M224="COMPOSIÇÃO",LEFT(RIGHT(CAMINHO_DO_BD,19),14),IF(M224="INSUMO","INSUMO " & LEFT(RIGHT(CAMINHO_DO_BD,19),14),IF(M224="COMPOSIÇÃO PRÓPRIA","COMPOSIÇÃO PRÓPRIA COM BASE NA " & LEFT(RIGHT(CAMINHO_DO_BD,19),14),"PREÇO MÉDIO DE ORÇAMENTOS"))) -> SINAPI-10-2022 | J224: 12.61 | K224: =ROUND(J224*(1+BDI),2) -> 15.43 | M224: COMPOSIÇÃO | N224: BDI DE OBRA
A225: =$A$223&"."&(ROW(A225)-ROW($A$223)) -> 1.2.3.2 | B225: DISJUNTOR MONOPOLAR TIPO DIN, CORRENTE NOMINAL DE 16A - FORNECIMENTO E INSTALAÇÃO. AF_10/2020 | C225: UN | D225: 3 | E225: 16.14 | F225: 48.42 | H225: 93654 | I225: SINAPI-10-2022 | J225: 13.19 | K225: =ROUND(J225*(1+BDI),2) -> 16.14 | M225: COMPOSIÇÃO | N225: BDI DE OBRA
A226: 1.2.3.3 | B226: DISJUNTOR BIPOLAR TIPO DIN, CORRENTE NOMINAL DE 10A - FORNECIMENTO E INSTALAÇÃO. AF_10/2020 | C226: UN | D226: 3 | E226: 76.68 | F226: 230.04 | H226: 93660 | I226: SINAPI-10-2022 | J226: 62.67 | K226: 76.68 | M226: COMPOSIÇÃO | N226: BDI DE OBRA
A227: 1.2.3.4 | B227: DISJUNTOR BIPOLAR TIPO DIN, CORRENTE NOMINAL DE 16A - FORNECIMENTO E INSTALAÇÃO. AF_10/2020 | C227: UN | D227: 1 | E227: 78.1 | F227: 78.1 | H227: 93661 | I227: SINAPI-10-2022 | J227: 63.83 | K227: 78.1 | M227: COMPOSIÇÃO | N227: BDI DE OBRA
A228: 1.2.3.5 | B228: DISJUNTOR BIPOLAR TIPO DIN, CORRENTE NOMINAL DE 20A - FORNECIMENTO E INSTALAÇÃO. AF_10/2020 | C228: UN | D228: 4 | E228: 80.93 | F228: 323.72 | H228: 93662 | I228: SINAPI-10-2022 | J228: 66.15 | K228: 80.93 | M228: COMPOSIÇÃO | N228: BDI DE OBRA
A229: 1.2.3.6 | B229: DISJUNTOR TRIPOLAR TERMOMAGNÉTICO, TIPO DIN, 100A. FORNECIMENTO E INSTALAÇÃO | C229: UN | D229: 1 | E229: 232.1 | F229: 232.1 | H229: C_ELE0084 | I229: =IF(M229="COMPOSIÇÃO",LEFT(RIGHT(CAMINHO_DO_BD,19),14),IF(M229="INSUMO","INSUMO " & LEFT(RIGHT(CAMINHO_DO_BD,19),14),IF(M229="COMPOSIÇÃO PRÓPRIA","COMPOSIÇÃO PRÓPRIA COM BASE NA " & LEFT(RIGHT(CAMINHO_DO_BD,19),14),"PREÇO MÉDIO DE ORÇAMENTOS"))) -> COMPOSIÇÃO PRÓPRIA COM BASE NA SINAPI-10-2022 | J229: 189.7 | K229: =ROUND(J229*(1+BDI),2) -> 232.1 | M229: COMPOSIÇÃO PRÓPRIA | N229: BDI DE OBRA
A230: 1.2.3.7 | B230: FORNECIMENTO E INSTALAÇÃO DE DISPOSITIVO DPS, 1 POLO, 175 V, 45 KA | C230: UN | D230: 4 | E230: 149.22 | F230: 596.88 | H230: C_ELE0089 | I230: =IF(M230="COMPOSIÇÃO",LEFT(RIGHT(CAMINHO_DO_BD,19),14),IF(M230="INSUMO","INSUMO " & LEFT(RIGHT(CAMINHO_DO_BD,19),14),IF(M230="COMPOSIÇÃO PRÓPRIA","COMPOSIÇÃO PRÓPRIA COM BASE NA " & LEFT(RIGHT(CAMINHO_DO_BD,19),14),"PREÇO MÉDIO DE ORÇAMENTOS"))) -> COMPOSIÇÃO PRÓPRIA COM BASE NA SINAPI-10-2022 | J230: 121.96 | K230: =ROUND(J230*(1+BDI),2) -> 149.22 | M230: COMPOSIÇÃO PRÓPRIA | N230: BDI DE OBRA
A232: 1.2.4 | B232: ELETRODUTOS / ELETROCALHAS / PERFILADOS | F232: =SUBTOTAL(9,F233:F253) -> 17871.56
A233: =$A$232&"."&(ROW(A233)-ROW($A$232)) -> 1.2.4.1 | B233: ELETRODUTO RÍGIDO ROSCÁVEL, PVC, DN 25 MM (3/4"), PARA CIRCUITOS TERMINAIS, INSTALADO EM FORRO - FORNECIMENTO E INSTALAÇÃO. AF_12/2015 | C233: M | D233: 24 | E233: =K233 -> 14.79 | F233: =ROUND(D233*E233,2) -> 354.96 | H233: 91863 | I233: =IF(M233="COMPOSIÇÃO",LEFT(RIGHT(CAMINHO_DO_BD,19),14),IF(M233="INSUMO","INSUMO " & LEFT(RIGHT(CAMINHO_DO_BD,19),14),IF(M233="COMPOSIÇÃO PRÓPRIA","COMPOSIÇÃO PRÓPRIA COM BASE NA " & LEFT(RIGHT(CAMINHO_DO_BD,19),14),"PREÇO MÉDIO DE ORÇAMENTOS"))) -> SINAPI-10-2022 | J233: 12.09 | K233: =ROUND(J233*(1+BDI),2) -> 14.79 | M233: COMPOSIÇÃO | N233: BDI DE OBRA
A234: =$A$232&"."&(ROW(A234)-ROW($A$232)) -> 1.2.4.2 | B234: ELETRODUTO RÍGIDO ROSCÁVEL, PVC, DN 32 MM (1"), PARA CIRCUITOS TERMINAIS, INSTALADO EM FORRO - FORNECIMENTO E INSTALAÇÃO. AF_12/2015 | C234: M | D234: 213 | E234: 19.54 | F234: 4162.02 | H234: 91864 | I234: SINAPI-10-2022 | J234: 15.97 | K234: 19.54 | M234: COMPOSIÇÃO | N234: BDI DE OBRA
A235: 1.2.4.3 | B235: ELETRODUTO RIGIDO ROSCÁVEL, PVC, DN 50 MM (1" 1/2"), PARA CIRCUITOS TERMINAIS, INSTALADO EM FORRO - FORNECIMENTO E INSTALAÇÃO | C235: UN | D235: 63 | E235: 25.27 | F235: 1592.01 | H235: C_ELE0315 | I235: =IF(M235="COMPOSIÇÃO",LEFT(RIGHT(CAMINHO_DO_BD,19),14),IF(M235="INSUMO","INSUMO " & LEFT(RIGHT(CAMINHO_DO_BD,19),14),IF(M235="COMPOSIÇÃO PRÓPRIA","COMPOSIÇÃO PRÓPRIA COM BASE NA " & LEFT(RIGHT(CAMINHO_DO_BD,19),14),"PREÇO MÉDIO DE ORÇAMENTOS"))) -> COMPOSIÇÃO PRÓPRIA COM BASE NA SINAPI-10-2022 | J235: 20.65 | K235: =ROUND(J235*(1+BDI),2) -> 25.27 | M235: COMPOSIÇÃO PRÓPRIA | N235: BDI DE OBRA
... 117 more rows

Sheet COMPOSIÇÃO DO BDI
A2: COMPOSIÇÃO DO BDI OBRAS DE ENGENHARIA
A6: DESCRIÇÃO | C6: %
A7: GRUPO A
A8: A1 | B8: (AC) ADMINISTRAÇÃO CENTRAL - VARIA CONFORME O PORTE DA NÚMERO DE OBRAS EM ANDAMENTO, VOLUME FINANCEIRO DAS OBRAS A INICIAREM, ETC, EM CADA EM CADA EMPRESA - (ACORDAO 2622/2013 - 3,0% A 5,5%) | C8: =ROUND(AVERAGE(3%,5.5%),4) -> 0.0425
B9: TOTAL DO GRUPO A = | C9: =SUM(C8) -> 0.0425
A11: GRUPO B
A12: B1 | B12: (DF) DESPESAS FINANCEIRAS - (ACORDAO 2622/2013 - 0,59% A 1,39%) | C12: =ROUND(AVERAGE(0.59%,1.39%),4) -> 0.0099 | D12: ***deve estar dentro da média dos ultimos 3 meses antecedentes ao contrato
A13: B2 | B13: (S) SEGUROS - (ACORDAO 2622/2013 SEGURO + GARANTIA - 0,8% A 1,0%) | C13: =ROUND(AVERAGE(0.4%,0.5%),4) -> 0.0045
A14: B2 | B14: (G) GARANTIAS - (ACORDAO 2622/2013 SEGURO + GARANTIA - 0,8% A 1,0%) | C14: =ROUND(AVERAGE(0.4%,0.5%),4) -> 0.0045
A15: B3 | B15: (R) TAXA DE RISCO E IMPREVISTOS - (ACORDAO 2622/2013 0,97% A 1,27%) | C15: =ROUND(AVERAGE(0.97%,1.27%),4) -> 0.0112
A16: B4 | B16: (L) LUCRO (ACORDAO 2622/2013 6,16% A 8,96%) | C16: =ROUND(AVERAGE(6.16%,8.96%),4) -> 0.0756
B17: TOTAL DO GRUPO B = | C17: =SUM(C12:C16) -> 0.1057
A19: GRUPO C
A20: C1 | B20: ISS - (ISS% SOBRE 40% DE MÃO DE OBRA)
A21: C2 | B21: %MÃO DE OBRA | C21: 0.4
A22: C3 | B22: ISS DO MUNICÍPIO | C22: 0.05
A23: C4 | B23: SUBTOTAL ISS (C2 X C3) = | C23: =C22*C21 -> 0.02
A24: C5 | B24: PIS | C24: 0.0065
A25: C6 | B25: COFINS | C25: 0.03
B26: TOTAL DO GRUPO C = | C26: =SUM(C23:C25) -> 0.0565
A28: TOTAL BDI (FORMULA ACORDAO 2369/2011) | C28: =ROUND((1+C8+C13+C15+C14)*(1+C12)*(1+C16)/(1-C26)-1,4) -> 0.2235
A29: BDI = (1+AC+S+R+G)x(1+DF)X(1+L)) -1 1-I Onde: AC = taxa representativa das despesas de rateio da Administração Central; S = taxa representativa de Seguros; R = taxa representativa de Riscos; G = taxa representativa de Garantias; DF = taxa representativa das Despesas Financeiras; L = taxa representativa do Lucro; I = taxa representativa da incidência de Impostos. Observação: i) Composição do BDI, intervalos admissíveis e Fórmula de cálculo nos termos do Acórdão 2622/2013 do TCU.

Sheet COMPOSIÇÃO DO BDI REDUZIDO
A2: COMPOSIÇÃO DO BDI REDUZIDO
A6: DESCRIÇÃO | C6: %
A7: GRUPO A
A8: A1 | B8: (AC) ADMINISTRAÇÃO CENTRAL - VARIA CONFORME O PORTE DA NÚMERO DE OBRAS EM ANDAMENTO, VOLUME FINANCEIRO DAS OBRAS A INICIAREM, ETC, EM CADA EM CADA EMPRESA - (ACORDAO 2622/2013 - 1,5% A 4,49%) | C8: =ROUND(AVERAGE(1.5%,4.49%),4) -> 0.03
B9: TOTAL DO GRUPO A = | C9: =SUM(C8) -> 0.03
A11: GRUPO B
A12: B1 | B12: (DF) DESPESAS FINANCEIRAS - (ACORDAO 2622/2013 - 0,85% A 1,11%) | C12: =ROUND(AVERAGE(0.85%,1.11%),4) -> 0.0098
A13: B2 | B13: (S) SEGUROS - (ACORDAO 2622/2013 SEGURO + GARANTIA - 0,3% A 0,82%) | C13: =ROUND(AVERAGE(0.3%/2,0.82%/2),4) -> 0.0028
A14: B2 | B14: (G) GARANTIAS - (ACORDAO 2622/2013 SEGURO + GARANTIA - 0,3% A 0,82%) | C14: =ROUND(AVERAGE(0.3%/2,0.82%/2),4) -> 0.0028
A15: B3 | B15: (R) TAXA DE RISCO E IMPREVISTOS - (ACORDAO 2622/2013 0,56% A 0,89%) | C15: =ROUND(AVERAGE(0.56%,0.89%),4) -> 0.0073
A16: B4 | B16: (L) LUCRO (ACORDAO 2622/2013 3,50% A 6,22%) | C16: =ROUND(AVERAGE(3.5%,6.22%),4) -> 0.0486
B17: TOTAL DO GRUPO B = | C17: =SUM(C12:C16) -> 0.0713
A19: GRUPO C
A20: C1 | B20: ISS - (ISS% SOBRE 40% DE MÃO DE OBRA)
A21: C2 | B21: %MÃO DE OBRA | C21: 0
A22: C3 | B22: ISS DO MUNICÍPIO | C22: 0.05
A23: C4 | B23: SUBTOTAL ISS (C2 X C3) = | C23: =C22*C21 -> 0
A24: C5 | B24: PIS | C24: 0.0065
A25: C6 | B25: COFINS | C25: 0.03
B26: TOTAL DO GRUPO C = | C26: =SUM(C23:C25) -> 0.0365
A28: TOTAL BDI (ACORDAO 2369/2011) | C28: =ROUND((1+C8+C13+C15+C14)*(1+C12)*(1+C16)/(1-C26)-1,4) -> 0.1461
A29: BDI = (1+AC+S+R+G)x(1+DF)X(1+L)) -1 1-I Onde: AC = taxa representativa das despesas de rateio da Administração Central; S = taxa representativa de Seguros; R = taxa representativa de Riscos; G = taxa representativa de Garantias; DF = taxa representativa das Despesas Financeiras; L = taxa representativa do Lucro; I = taxa representativa da incidência de Impostos. Observação: i) Composição do BDI, intervalos admissíveis e Fórmula de cálculo nos termos do Acórdão 2622/2013 do TCU.
